{"text_format":"1","workbook":"xlsx","n_sheets":20,"sheets":["dSTART","dLIST","シートの説明v.3.５","入力用","入力用(第三面)","連絡票","送付依頼書","【旧】受付票","委任状","委任状 (2人目)","【第一面】","【第二面】","【第三面】","【旧】委任状","第1面 別紙(申請者)","第2面 別紙(建築主)","第2面 別紙(代理者)","第2面 別紙(その他設計者)","第2面 別紙(構造一級表示)","第2面 別紙(敷地の位置)"],"not_rendered":{"charts":0,"images":0,"macros":1,"external_links":0,"defined_names":280,"comments":2,"pivot_tables":0},"unopened":[],"bounds":{"document_bytes":16777216,"sheet_cells":100000,"rows_first":2000,"rows_last":500,"rows_between":2000,"halvings":0,"cell_chars":16384,"cell_head_chars":4096},"cells_cut":0,"cells_raw":0,"read":"whole","date_system":"1900"}

{"sheet":"dSTART","index":0,"n_rows":15,"n_cols":4,"rows_kept":15,"cut":false,"hidden":true,"merged":[]}
[null,"日付",null,"内容"]
[null,"2021-02-05","山口","CBLV版申請書を元に作成"]
[]
[]
[]
[]
[]
[]
[]
[]
[]
["【注意事項】"]
[null,"※下記シートは非表示にする"]
[null,"　　・dSTART"]
[null,"　　・dLIST"]

{"sheet":"dLIST","index":1,"n_rows":245,"n_cols":24,"rows_kept":245,"cut":false,"hidden":true,"merged":[]}
["設計者氏名",null,"確認機関リスト",null,"建築士資格",null,"建築士資格発行元",null,"事務所許可交付元",null,"設計ルート",null,"構造",null,"特定構造計算基準",null,"構造計算の区分",null,"構造計算に用いたプログラム名称",null,"令第137条の2",null,"工事種別","選択"]
[]
[{"$f":"bukken_ARCHITECT_ID__NAME&\"\"","v":""},null,"一般財団法人さいたま住宅検査センター",null,"一級",null,"大臣",null,"北海道",null,"ルート3",null,"木造",null,"特定構造計算基準",null,"令第81条第2項第1号イ",null,"ACE許容３",null,"1-イ",null,"新築",{"$f":"IF(入力用!$B$81=W3,\"■\",\"□\")","v":"□"}]
[{"$f":"bukken_ARCHITECT_1_ID__NAME&\"\"","v":""},null,"一般財団法人愛知県建築住宅センター",null,"二級",null,"北海道知事",null,"青森県",null,"ルート2",null,"木造（枠組壁工法）",null,"特定増改築構造計算基準",null,"令第81条第2項第1号ロ",null,"ACE許容Ⅱ",null,"1-ロ",null,"増築",{"$f":"IF(入力用!$B$81=W4,\"■\",\"□\")","v":"□"}]
[{"$f":"bukken_ARCHITECT_2_ID__NAME&\"\"","v":""},null,"一般財団法人茨城県建築センター",null,"木造",null,"青森県知事",null,"岩手県",null,"ルート1",null,"鉄骨造",null,null,null,"令第81条第2項第2号イ",null,"ASCAL",null,"2-イ",null,"改築",{"$f":"IF(入力用!$B$81=W5,\"■\",\"□\")","v":"□"}]
[{"$f":"bukken_ARCHITECT_3_ID__NAME&\"\"","v":""},null,"一般財団法人神奈川県建築安全協会",null,null,null,"岩手県知事",null,"宮城県",null,null,null,"鉄筋コンクリート造",null,"※固定リスト",null,"令第81条第3項",null,"BRAIN",null,"2-ロ",null,"移転",{"$f":"IF(入力用!$B$81=W6,\"■\",\"□\")","v":"□"}]
[{"$f":"bukken_ARCHITECT_4_ID__NAME&\"\"","v":""},null,"一般財団法人静岡県建築住宅まちづくりセンター",null,null,null,"宮城県知事",null,"秋田県",null,"CBLV",null,"鉄骨鉄筋コンクリート造",null,null,null,null,null,"BRAINⅡ",null,"2-ハ",null,{"$f":"IF(LEFT(入力用!F2,4)=\"計画変更\",\"用途変更\",\"大規模の修繕\")","v":"大規模の修繕"},{"$f":"IF(入力用!$B$81=W7,\"■\",\"□\")","v":"□"}]
[{"$f":"bukken_ARCHITECT_5_ID__NAME&\"\"","v":""},null,"一般財団法人長野県建築住宅センター",null,null,null,"秋田県知事",null,"山形県",null,null,null,"木（枠組壁工法）",null,null,null,"※固定リスト",null,"BRAINⅢ",null,"3-イ",null,{"$f":"IF(LEFT(入力用!F2,4)=\"計画変更\",\"大規模の修繕\",\"大規模の模様替\")","v":"大規模の模様替"},{"$f":"IF(入力用!$B$81=W8,\"■\",\"□\")","v":"□"}]
[{"$f":"bukken_ARCHITECT_6_ID__NAME&\"\"","v":""},null,"一般財団法人日本建築総合試験所",null,null,null,"山形県知事",null,"福島県",null,null,null,"木造枠組壁工法",null,null,null,null,null,"BUILD.壁式Ⅳ+",null,"3-ロ",null,{"$f":"IF(LEFT(入力用!F2,4)=\"計画変更\",\"大規模の模様替\",\"\")","v":""},{"$f":"IF(W9=\"\",\"\",IF(入力用!$B$81=W9,\"■\",\"□\"))","v":""}]
[{"$f":"bukken_ARCHITECT_7_ID__NAME&\"\"","v":""},null,"一般社団法人日本住宅性能評価機構",null,null,null,"福島県知事",null,"茨城県",null,null,null,"木造軸組工法",null,null,null,null,null,"BUILD.壁式Ⅴ"]
[{"$f":"bukken_ARCHITECT_8_ID__NAME&\"\"","v":""},null,"公益財団法人東京都防災・建築まちづくりセンター",null,null,null,"茨城県知事",null,"栃木県",null,null,null,"枠組壁工法",null,null,null,null,null,"BUILDING　３D",null,"※固定リスト",null,"※計変の有無によって変動"]
[null,null,"ＮＩＣ確認検査株式会社",null,null,null,"栃木県知事",null,"群馬県",null,null,null,"鉄骨造＋木造",null,null,null,null,null,"Building Editor"]
["↑",null,"ＳＢＩアーキクオリティ株式会社",null,null,null,"群馬県知事",null,"埼玉県",null,null,null,"S造、SRC造",null,null,null,null,null,"BUILD一貫Ⅳ+"]
["第二面の入力内容が入る",null,"ＳＧＳジャパン株式会社",null,null,null,"埼玉県知事",null,"千葉県",null,null,null,"SRC造",null,null,null,null,null,"BUILD一貫Ⅴ"]
[null,null,"アウェイ建築評価ネット株式会社",null,null,null,"千葉県知事",null,"東京都",null,null,null,"アルミニウム合金",null,null,null,null,null,"BUS-3"]
[null,null,"イーハウス建築センター株式会社",null,null,null,"東京都知事",null,"神奈川県",null,null,null,"壁式鉄筋コンクリート造",null,null,null,null,null,"BUS-5"]
[null,null,"さいたま市",null,null,null,"神奈川県知事",null,"新潟県",null,null,null,"柱、梁＝鉄骨、基礎部分＝鉄筋コンクリート",null,null,null,null,null,"BUS-6"]
[null,null,"シー・アイ建築認証機構株式会社",null,null,null,"新潟県知事",null,"富山県",null,null,null,"柱＝鉄筋コンクリート造、梁＝鉄骨造",null,null,null,null,null,"DEMOS BUILD-1"]
[null,null,"つくば市",null,null,null,"富山県知事",null,"石川県",null,null,null,"ＲＣ造",null,null,null,null,null,"FAP-3"]
[null,null,"ハウスプラス確認検査株式会社",null,null,null,"石川県知事",null,"福井県",null,null,null,"鉄筋コンクリート造一部鉄骨造",null,null,null,null,null,"HOUSE-ST1"]
[null,null,"ひたちなか市",null,null,null,"福井県知事",null,"山梨県",null,null,null,"鉄骨",null,null,null,null,null,"KADES-3.4"]
[null,null,"ビューローベリタスジャパン株式会社",null,null,null,"山梨県知事",null,"長野県",null,null,null,"鉄骨造一部ＲＣ造",null,null,null,null,null,"kizukuri2×4"]
[null,null,"ユーディーアイ確認検査株式会社",null,null,null,"長野県知事",null,"岐阜県",null,null,null,"鉄筋コンクリート造　",null,null,null,null,null,"KIZUKURI-STEEL"]
[null,null,"愛知県",null,null,null,"岐阜県知事",null,"静岡県",null,null,null,null,null,null,null,null,null,"LC　WRC"]
[null,null,"旭川市",null,null,null,"静岡県知事",null,"愛知県",null,null,null,null,null,null,null,null,null,"MIDAS/eＧｅｎ"]
[null,null,"安中市",null,null,null,"愛知県知事",null,"三重県",null,null,null,null,null,null,null,null,null,"MIDAS/Ｇｅｎ"]
[null,null,"伊勢崎市",null,null,null,"三重県知事",null,"滋賀県",null,null,null,"LIST_ID=2",null,null,null,null,null,"MIDAS/ｉＧｅｎ"]
[null,null,"夷隅土木事務所",null,null,null,"滋賀県知事",null,"京都府",null,null,null,null,null,null,null,null,null,"NASCA"]
[null,null,"一宮市役所",null,null,null,"京都府知事",null,"大阪府",null,null,null,null,null,null,null,null,null,"SCAPY"]
[null,null,"一般財団法人日本建築設備・昇降機センター",null,null,null,"大阪府知事",null,"兵庫県",null,null,null,null,null,null,null,null,null,"SEIN Premium"]
[null,null,"茨城県",null,null,null,"兵庫県知事",null,"奈良県",null,null,null,null,null,null,null,null,null,"SEIN LA CREA"]
[null,null,"茨城県県西県民センター",null,null,null,"奈良県知事",null,"和歌山県",null,null,null,null,null,null,null,null,null,"SH-1"]
[null,null,"茨城県県西地方総合事務所",null,null,null,"和歌山県知事",null,"鳥取県",null,null,null,null,null,null,null,null,null,"SPARK-Ⅱ"]
[null,null,"茨城県県南県民センター",null,null,null,"鳥取県知事",null,"島根県",null,null,null,null,null,null,null,null,null,"STAN/3D"]
[null,null,"茨城県県南地方総合事務所",null,null,null,"島根県知事",null,"岡山県",null,null,null,null,null,null,null,null,null,"STRDESIGN"]
[null,null,"茨城県県北県民センター",null,null,null,"岡山県知事",null,"広島県",null,null,null,null,null,null,null,null,null,"Super Build FA1"]
[null,null,"茨城県総務部県民センター総室県央建築指導室",null,null,null,"広島県知事",null,"山口県",null,null,null,null,null,null,null,null,null,"Super Build SS2"]
[null,null,"茨城県総務部鹿行県民センター",null,null,null,"山口県知事",null,"徳島県",null,null,null,null,null,null,null,null,null,"Super Build SS3"]
[null,null,"茨城県土木部都市局建築指導課",null,null,null,"徳島県知事",null,"香川県",null,null,null,null,null,null,null,null,null,"Super Build SS7"]
[null,null,"宇都宮市",null,null,null,"香川県知事",null,"愛媛県",null,null,null,null,null,null,null,null,null,"Super Build WRC"]
[null,null,"越谷建築安全センター",null,null,null,"愛媛県知事",null,"高知県",null,null,null,null,null,null,null,null,null,"WALL-1"]
[null,null,"越谷市",null,null,null,"高知県知事",null,"福岡県",null,null,null,null,null,null,null,null,null,"スチールハウスチェッカー"]
[null,null,"横須賀市",null,null,null,"福岡県知事",null,"佐賀県",null,null,null,null,null,null,null,null,null,"その他プログラム"]
[null,null,"横浜市",null,null,null,"佐賀県知事",null,"長崎県",null,null,null,null,null,null,null,null,null,"未使用"]
[null,null,"岡崎市",null,null,null,"長崎県知事",null,"熊本県"]
[null,null,"岡山県備中県民局",null,null,null,"熊本県知事",null,"大分県"]
[null,null,"岡山市",null,null,null,"大分県知事",null,"宮崎県"]
[null,null,"加賀市",null,null,null,"宮崎県知事",null,"鹿児島県"]
[null,null,"各務原市役所",null,null,null,"鹿児島県知事",null,"沖縄県"]
[null,null,"葛飾区",null,null,null,"沖縄県知事"]
[null,null,"株式会社ＣＩ東海"]
[null,null,"株式会社ＥＭＩ確認検査機構"]
[null,null,"株式会社Ｊ建築検査センター"]
[null,null,"株式会社ＴＳＫ建築確認安全センター"]
[null,null,"株式会社ＹＫＳ確認検査機構"]
[null,null,"株式会社ガイア"]
[null,null,"株式会社ぎふ建築住宅センター"]
[null,null,"株式会社グッド・アイズ建築検査機構"]
[null,null,"株式会社サッコウケン"]
[null,null,"株式会社ジェイ・イー・サポート"]
[null,null,"株式会社ビルディングナビゲーション確認評価機構"]
[null,null,"株式会社愛知建築センター"]
[null,null,"株式会社愛媛建築住宅センター"]
[null,null,"株式会社安心確認検査機構"]
[null,null,"株式会社確認サービス"]
[null,null,"株式会社確認検査愛知"]
[null,null,"株式会社高良ＧＵＴ"]
[null,null,"株式会社国際確認検査センター"]
[null,null,"株式会社埼玉建築確認検査機構"]
[null,null,"株式会社札幌工業検査"]
[null,null,"株式会社秋田県建築確認検査機関"]
[null,null,"株式会社住宅性能評価センター"]
[null,null,"株式会社湘南建築センター"]
[null,null,"株式会社新潟建築確認検査機構"]
[null,null,"株式会社神奈川建築確認検査機関"]
[null,null,"株式会社西日本住宅評価センター"]
[null,null,"株式会社千葉県建築住宅センター"]
[null,null,"株式会社都市居住評価センター"]
[null,null,"株式会社都市建築確認センター"]
[null,null,"株式会社東京建築検査機構"]
[null,null,"株式会社東日本住宅評価センター"]
[null,null,"株式会社日本住宅保証検査機構"]
[null,null,"株式会社日立製作所　日立総合病院"]
[null,null,"株式会社北関東建築検査機構"]
[null,null,"株式会社名古屋建築確認・検査システム"]
[null,null,"株式会社絆"]
[null,null,"鎌倉市"]
[null,null,"茅ヶ崎市"]
[null,null,"館林市"]
[null,null,"岩手県沿岸広域振興局土木部大船渡土木センター"]
[null,null,"岩手県県南広域振興局"]
[null,null,"岐阜市"]
[null,null,"狭山市"]
[null,null,"桐生市"]
[null,null,"釧路市"]
[null,null,"熊谷建築安全センター"]
[null,null,"熊谷市"]
[null,null,"群馬県"]
[null,null,"古河市"]
[null,null,"公益社団法人山梨県建設技術センター"]
[null,null,"厚木市"]
[null,null,"弘前市"]
[null,null,"江戸川区"]
[null,null,"江東区"]
[null,null,"江別市"]
[null,null,"港区"]
[null,null,"荒川区"]
[null,null,"香川県"]
[null,null,"高崎市"]
[null,null,"高知県"]
[null,null,"高知市"]
[null,null,"高萩市"]
[null,null,"国分寺市"]
[null,null,"佐野市"]
[null,null,"一般財団法人住宅金融普及協会"]
[null,null,"一般財団法人日本建築センター"]
[null,null,"埼玉県"]
[null,null,"埼玉県熊谷建築安全センター"]
[null,null,"埼玉県熊谷建築安全センター秩父駐在"]
[null,null,"埼玉県川越建築安全センター"]
[null,null,"札幌市"]
[null,null,"三条市"]
[null,null,"山梨県"]
[null,null,"市川市"]
[null,null,"鹿沼市"]
[null,null,"室蘭市"]
[null,null,"取手市"]
[null,null,"習志野市"]
[null,null,"渋川市"]
[null,null,"渋谷区"]
[null,null,"春日部市"]
[null,null,"所沢市"]
[null,null,"小山市"]
[null,null,"小樽市"]
[null,null,"小田原市"]
[null,null,"沼田市"]
[null,null,"上伊那地方事務所"]
[null,null,"上田市"]
[null,null,"上尾市"]
[null,null,"新潟市"]
[null,null,"新座市"]
[null,null,"新宿区"]
[null,null,"神奈川県"]
[null,null,"神奈川県県西土木事務所"]
[null,null,"神奈川県厚木土木事務所"]
[null,null,"神奈川県厚木土木事務所東部センター"]
[null,null,"神奈川県平塚土木事務所"]
[null,null,"秦野市"]
[null,null,"水戸市"]
[null,null,"杉並区"]
[null,null,"世田谷区"]
[null,null,"青森市"]
[null,null,"石川県津幡土木事務所"]
[null,null,"石川県南加賀土木総合事務所"]
[null,null,"千代田区"]
[null,null,"千葉県"]
[null,null,"千葉県成田土木事務所"]
[null,null,"千葉市"]
[null,null,"川越市　建築主事"]
[null,null,"川口市"]
[null,null,"川崎市"]
[null,null,"前橋市"]
[null,null,"倉敷市"]
[null,null,"相模原市"]
[null,null,"草加市"]
[null,null,"足利市"]
[null,null,"足立区"]
[null,null,"多摩建築指導事務所"]
[null,null,"太田市"]
[null,null,"帯広市"]
[null,null,"台東区"]
[null,null,"大垣市"]
[null,null,"大田区"]
[null,null,"大和市"]
[null,null,"稚内市"]
[null,null,"中央区"]
[null,null,"中野区"]
[null,null,"町田市"]
[null,null,"調布市"]
[null,null,"長野県"]
[null,null,"長野県伊那建設事務所"]
[null,null,"長野県下伊那地方事務所"]
[null,null,"長野県飯田建設事務所"]
[null,null,"土浦市"]
[null,null,"東京都"]
[null,null,"藤岡市"]
[null,null,"藤沢市"]
[null,null,"徳島県南部総合県民局"]
[null,null,"栃木県大田原土木事務所"]
[null,null,"栃木県土木事務所"]
[null,null,"栃木市"]
[null,null,"苫小牧市"]
[null,null,"日光市"]
[null,null,"日本ＥＲＩ株式会社"]
[null,null,"日本タリアセン株式会社"]
[null,null,"日本確認センター株式会社"]
[null,null,"日本建築検査協会株式会社"]
[null,null,"日本建物評価機構株式会社"]
[null,null,"日野市"]
[null,null,"日立市"]
[null,null,"柏市役所"]
[null,null,"白山市役所"]
[null,null,"函館市"]
[null,null,"八王子市"]
[null,null,"八戸市"]
[null,null,"板橋区"]
[null,null,"飯田建設事務所"]
[null,null,"品川区"]
[null,null,"富岡市"]
[null,null,"富山県新川土木センター"]
[null,null,"富山市"]
[null,null,"富士建築センター株式会社"]
[null,null,"武蔵野市"]
[null,null,"福島県会津若松建設事務所"]
[null,null,"福島市"]
[null,null,"文京区"]
[null,null,"平塚市"]
[null,null,"平塚土木事務所"]
[null,null,"豊橋市"]
[null,null,"豊川市"]
[null,null,"豊島区"]
[null,null,"北茨城市"]
[null,null,"北海道"]
[null,null,"北海道オホーツク総合振興局"]
[null,null,"北海道空知総合振興局"]
[null,null,"北海道釧路総合振興局"]
[null,null,"北海道後志振興局"]
[null,null,"北海道宗谷総合振興局"]
[null,null,"北海道十勝総合振興局"]
[null,null,"北海道上川総合振興局"]
[null,null,"北海道石狩振興局"]
[null,null,"北海道胆振総合振興局"]
[null,null,"北海道渡島総合振興局"]
[null,null,"北海道日高振興局"]
[null,null,"北海道留萌総合振興局"]
[null,null,"北海道檜山振興局"]
[null,null,"北区"]
[null,null,"北見市"]
[null,null,"墨田区"]
[null,null,"名古屋市"]
[null,null,"目黒区"]
[null,null,"有限責任中間法人日本住宅性能評価機構"]
[null,null,"有限会社みの建築確認検査センター"]
[null,null,"立川市"]
[null,null,"練馬区"]

{"sheet":"シートの説明v.3.５","index":2,"n_rows":27,"n_cols":4,"rows_kept":27,"cut":false,"hidden":false,"merged":[[3,1,3,3],[16,2,26,2],[17,3,25,3]]}
[]
[null,"申請書作成フォームv.3.５"]
[]
[null,"！お願い！　申請書を提出する際は、入力が完了したこの申請書作成フォームをExcelデータのまま、一緒に提出してください"]
[]
[null,"【入力編】・・・各シートの黄色のセルへ直接入力してください。（プルダウン選択項目あり）※セルに挿入されている関数は削除せずにご利用ください。"]
[]
[null,"シート名","説明・注意事項","更新日"]
[null,"入力用","・建築主、代理者、代表となる設計者、その他の設計者、構造一級建築士表示が複数人になる場合は、2人目以降（その他の\n　設計者は4人目以降）が別紙となります。シートのAZ行から右側のセル【別紙用】へ入力してください。\n・構造一級建築士は、設計者で入力された氏名からプルダウン選択ができます。\n・建設地の地名地番が入力し切れない場合は、「別紙参照」と入力し、地名地番は「第2面 別紙(敷地の位置)」のシートへ\n　直接入力してください。\n・別紙に入り切らない分は、別途、申請者様でご用意ください。\n・「申請書PDF作成」ボタンで第1～3面までのPDFが作成できます。別紙は、別紙ごとのに「PDF作成」ボタンで作成してください。","2024-07-01"]
[null,"入力用(第三面)","（リスト形式）\n・複数棟ある場合、2棟目以降は「棟追加」ボタンで行を追加して入力してください。枝番や棟名称が必要な場合は入力ください。\n　　棟番号入力例：1　　　　   → 棟番号欄「1」、枝番号欄「空欄」\n　　　　　　　　    1-2（B棟）→ 棟番号欄「1」、枝番号欄「2」、棟名称欄「（B棟）」","2024-07-01"]
[null,"連絡票","・お申し込み時に提出してください。\n「連絡票PDF作成」ボタンでPDFが作成できます。","2024-07-01"]
[null,"送付依頼書","※副本と適合通知書写しを当機関から確認申請先へ直接送付を希望する場合のみ作成し、提出をお願いします。\n「送付依頼書PDF作成」ボタンでPDFが作成できます。","2022-04-01"]
[]
[null,"【様式編】（レイアウト確認用・印刷用）・・・直接入力はできません。"]
[]
[null,"シート名","説明・注意事項","更新日"]
[null,"委任状","・入力用シートに入力した内容を反映して、各種申請書及び別紙と委任状が自動作成されます。\n・各シートの記載内容、レイアウト（ズレや見切れ等がないか）をご確認のうえ、印刷やPDFの作成を行ってください。\n・委任状は、委任者1名分が作成されます。2人目の委任者は、委任状（2人目）をご利用ください。3人目以降は、別途個別の様式をご利用ください。","2022-06-03"]
[null,"【第一面】",null,"2024-11-01"]
[null,"【第二面】"]
[null,"【第三面】"]
[null,"第1面 別紙(申請者)"]
[null,"第2面 別紙(建築主)"]
[null,"第2面 別紙(代理者)"]
[null,"第2面 別紙(その他設計者)"]
[null,"第2面 別紙(構造一級表示)"]
[null,"第2面 別紙(敷地の位置)"]
[null,"委任状（2人目）",null,"2022-06-03"]

{"sheet":"入力用","index":3,"n_rows":127,"n_cols":238,"rows_kept":127,"cut":false,"hidden":false,"merged":[[41,0,47,0],[50,0,56,0],[59,0,65,0],[32,51,38,51],[32,75,38,75],[32,123,38,123],[32,147,38,147],[32,99,38,99],[68,0,73,0],[68,147,73,147],[38,128,38,131],[38,132,38,133],[38,134,38,146],[39,124,39,127],[39,128,39,146],[40,124,40,130],[40,131,40,146],[32,100,32,101],[32,102,32,105],[32,106,32,107],[32,108,32,111],[38,100,38,103],[38,104,38,107],[38,108,38,109],[68,219,73,219],[69,220,69,221],[69,222,69,242],[70,220,70,221],[70,231,70,236],[72,220,72,221],[72,222,72,242],[73,220,73,221],[73,231,73,236],[68,195,73,195],[69,196,69,197],[69,198,69,218],[70,196,70,197],[70,207,70,212],[72,196,72,197],[72,198,72,218],[73,196,73,197],[73,207,73,212],[68,171,73,171],[69,172,69,173],[69,174,69,194],[70,172,70,173],[70,183,70,188],[72,172,72,173],[72,174,72,194],[73,172,73,173],[73,183,73,188],[68,51,73,51],[69,148,69,149],[69,150,69,170],[70,148,70,149],[70,159,70,164],[72,148,72,149],[72,150,72,170],[73,148,73,149],[73,159,73,164],[68,123,73,123],[69,124,69,125],[69,126,69,146],[70,124,70,125],[70,135,70,140],[72,124,72,125],[72,126,72,146],[73,124,73,125],[73,135,73,140],[68,99,73,99],[69,100,69,101],[69,102,69,122],[70,100,70,101],[70,111,70,116],[72,100,72,101],[72,102,72,122],[73,100,73,101],[73,111,73,116],[69,76,69,77],[69,78,69,98],[70,87,70,92],[72,76,72,77],[72,78,72,98],[73,76,73,77],[73,87,73,92],[24,64,24,65],[24,68,24,73],[35,78,35,81],[35,82,35,85],[35,86,35,89],[35,90,35,92],[35,94,35,97],[31,62,31,74],[30,60,30,61],[30,62,30,74],[32,84,32,87],[72,54,72,74],[73,52,73,53],[73,63,73,68],[39,52,39,55],[39,56,39,74],[40,52,40,58],[40,59,40,74],[68,75,73,75],[32,88,32,89],[70,76,70,77],[38,52,38,55],[38,56,38,59],[38,60,38,61],[38,62,38,74],[38,76,38,79],[38,80,38,83],[38,84,38,85],[38,86,38,98],[39,76,39,79],[35,70,35,73],[40,76,40,82],[40,83,40,98],[39,80,39,98],[35,158,35,161],[35,162,35,164],[35,166,35,169],[34,148,34,151],[13,58,13,59],[27,58,27,61],[27,62,27,65],[27,66,27,68],[27,70,27,73],[31,56,31,59],[31,60,31,61],[32,54,32,57],[32,58,32,59],[32,60,32,63],[32,64,32,65],[32,68,32,73],[32,76,32,77],[32,78,32,81],[32,82,32,83],[18,124,18,127],[18,128,18,146],[28,52,28,55],[27,54,27,57],[31,52,31,55],[39,148,39,151],[39,152,39,170],[40,148,40,154],[40,155,40,170],[32,124,32,125],[32,126,32,129],[32,130,32,131],[32,132,32,135],[32,136,32,137],[32,140,32,145],[35,126,35,129],[35,130,35,133],[35,134,35,137],[35,138,35,140],[35,142,35,145],[38,124,38,127],[32,148,32,149],[32,150,32,153],[32,154,32,155],[32,156,32,159],[32,160,32,161],[32,164,32,169],[35,150,35,153],[35,154,35,157],[40,100,40,106],[40,107,40,122],[32,112,32,113],[32,116,32,121],[35,102,35,105],[35,106,35,109],[35,110,35,113],[35,114,35,116],[35,118,35,121],[36,100,36,103],[36,104,36,122],[34,104,34,122],[34,100,34,103],[39,100,39,103],[39,104,39,122],[23,100,23,103],[23,104,23,122],[21,128,21,146],[21,124,21,127],[37,128,37,146],[37,124,37,127],[22,86,22,98],[19,80,19,98],[36,128,36,146],[21,80,21,98],[21,104,21,122],[21,100,21,103],[20,124,20,127],[19,124,19,127],[23,124,23,127],[19,100,19,103],[22,124,22,127],[36,124,36,127],[32,92,32,97],[20,128,20,146],[22,128,22,131],[22,132,22,133],[22,134,22,146],[19,104,19,122],[20,100,20,103],[20,104,20,122],[22,100,22,103],[22,104,22,107],[22,108,22,109],[22,110,22,122],[20,76,20,79],[19,76,19,79],[21,52,21,55],[21,56,21,74],[21,76,21,79],[22,76,22,79],[23,128,23,146],[24,54,24,57],[23,76,23,79],[23,80,23,98],[30,52,30,55],[30,56,30,59],[18,75,23,75],[18,99,23,99],[18,123,23,123],[18,76,18,79],[18,100,18,103],[20,80,20,98],[18,80,18,98],[22,80,22,83],[18,104,18,122],[22,84,22,85],[19,128,19,146],[23,56,23,74],[19,56,19,74],[24,58,24,59],[28,56,28,74],[26,56,26,74],[26,52,26,55],[24,60,24,63],[14,9,14,23],[10,10,10,22],[15,9,15,23],[15,0,15,7],[11,9,11,10],[11,11,11,13],[11,15,11,16],[11,18,11,19],[23,1,23,4],[23,5,23,23],[17,1,17,23],[18,0,23,0],[18,1,18,4],[18,5,18,23],[8,28,8,29],[9,28,9,29],[10,51,10,54],[10,60,10,74],[13,60,13,74],[11,58,11,59],[11,60,11,74],[12,0,13,8],[12,9,13,23],[12,51,12,54],[8,7,9,8],[8,9,9,23],[12,60,12,74],[126,3,126,10],[20,1,20,4],[20,5,20,23],[107,1,107,3],[108,1,108,3],[109,1,109,3],[110,1,110,3],[111,1,111,3],[27,7,27,10],[27,3,27,6],[110,4,110,10],[110,11,110,12],[110,13,110,23],[111,4,111,23],[116,5,116,6],[116,8,116,10],[116,12,116,14],[117,6,117,23],[115,4,115,10],[115,11,115,12],[115,13,115,23],[106,5,106,10],[31,1,31,4],[114,11,114,12],[0,1,0,23],[105,0,106,0],[105,1,105,4],[106,1,106,4],[1,5,2,8],[19,1,19,4],[24,7,24,8],[24,13,24,14],[24,17,24,22],[24,9,24,12],[24,3,24,6],[7,0,7,3],[19,5,19,23],[27,11,27,14],[35,3,35,6],[24,0,31,0],[3,0,3,3],[4,0,4,3],[1,9,2,23],[30,9,30,10],[30,11,30,23],[27,15,27,17],[7,9,7,23],[5,7,6,8],[1,2,2,4],[32,0,40,0],[22,1,22,4],[22,5,22,8],[22,9,22,10],[22,11,22,23],[27,19,27,22],[32,3,32,6],[32,7,32,8],[32,9,32,12],[32,13,32,14],[32,17,32,22],[3,4,3,8],[3,15,3,22],[4,9,4,23],[5,9,6,23],[40,1,40,7],[40,8,40,23],[24,1,24,2],[30,1,30,4],[30,5,30,8],[31,5,31,8],[31,9,31,10],[31,11,31,23],[114,13,114,23],[113,1,113,3],[114,1,114,3],[115,1,115,3],[112,0,112,14],[113,0,117,0],[109,4,109,7],[107,0,111,0],[107,4,107,23],[108,4,108,10],[108,11,108,12],[108,13,108,23],[109,8,109,9],[109,10,109,23],[117,1,117,5],[116,1,116,3],[113,4,113,23],[114,4,114,10],[123,0,123,3],[122,8,122,23],[118,0,122,0],[123,4,123,23],[122,1,122,3],[121,1,121,3],[120,1,120,3],[119,5,119,23],[118,1,119,4],[118,5,118,23],[120,4,120,10],[120,13,120,23],[121,4,121,10],[120,11,120,12],[121,11,121,12],[121,13,121,23],[122,4,122,7],[48,1,48,4],[48,5,48,23],[49,1,49,7],[49,8,49,23],[44,19,44,22],[47,1,47,4],[47,5,47,8],[38,1,38,4],[38,5,38,8],[38,9,38,10],[38,11,38,23],[39,1,39,4],[39,5,39,23],[43,1,43,4],[46,5,46,23],[46,1,46,4],[41,1,41,2],[41,3,41,6],[41,7,41,8],[41,9,41,12],[41,13,41,14],[41,17,41,22],[57,1,57,4],[57,5,57,23],[58,1,58,7],[58,8,58,23],[50,13,50,14],[50,17,50,22],[53,3,53,6],[53,7,53,10],[53,11,53,14],[53,15,53,17],[53,19,53,22],[55,5,55,23],[55,1,55,4],[52,5,52,23],[52,1,52,4],[50,1,50,2],[50,3,50,6],[50,7,50,8],[50,9,50,12],[56,1,56,4],[56,5,56,8],[56,9,56,10],[56,11,56,23],[66,1,66,4],[66,5,66,23],[67,1,67,7],[67,8,67,23],[69,3,69,23],[69,1,69,2],[70,1,70,2],[72,1,72,2],[73,1,73,2],[87,6,87,8],[87,4,87,5],[87,13,87,14],[87,15,87,17],[75,0,75,5],[79,2,79,3],[79,5,79,6],[79,8,79,9],[79,11,79,12],[77,1,77,2],[59,13,59,14],[59,17,59,22],[62,3,62,6],[62,7,62,10],[59,1,59,2],[59,3,59,6],[59,7,59,8],[59,9,59,12],[65,1,65,4],[65,5,65,8],[65,9,65,10],[65,11,65,23],[63,1,63,4],[63,5,63,23],[61,5,61,23],[62,11,62,14],[62,15,62,17],[62,19,62,22],[74,0,74,5],[84,0,84,3],[85,0,85,3],[104,38,104,49],[102,2,102,23],[96,2,96,23],[87,0,87,3],[88,0,88,3],[86,0,86,4],[84,4,84,14],[85,4,85,14],[86,5,86,14],[88,13,88,14],[88,15,88,23],[88,4,88,12],[99,5,99,13],[101,14,101,22],[104,1,104,23],[97,2,97,23],[83,4,83,23],[77,5,77,14],[77,16,77,22],[75,6,75,23],[76,0,76,5],[106,52,106,61],[4,51,4,54],[4,60,4,74],[5,58,6,59],[5,60,6,74],[7,51,7,54],[7,60,7,74],[8,58,9,59],[8,60,9,74],[20,52,20,55],[20,56,20,74],[22,52,22,55],[22,56,22,59],[22,60,22,61],[22,62,22,74],[19,52,19,55],[23,52,23,55],[24,51,31,51],[25,56,25,74],[69,52,69,53],[69,54,69,74],[70,52,70,53],[70,63,70,68],[72,52,72,53],[25,1,25,4],[25,5,25,23],[27,1,27,2],[28,1,28,4],[28,5,28,23],[21,5,21,23],[21,1,21,4],[26,1,26,4],[26,5,26,23],[24,52,24,53],[18,51,23,51],[18,52,18,55],[18,56,18,74],[25,52,25,55],[45,1,45,4],[45,5,45,23],[43,5,43,23],[44,3,44,6],[44,7,44,10],[44,11,44,14],[44,15,44,17],[29,1,29,4],[29,52,29,55],[35,19,35,22],[35,7,35,10],[35,11,35,14],[35,15,35,17],[36,1,36,4],[36,5,36,23],[37,5,37,23],[37,1,37,4],[29,56,29,74],[34,5,34,23],[34,1,34,4],[32,52,32,53],[32,1,32,2],[34,56,34,74],[34,52,34,55],[29,5,29,23],[33,1,33,4],[33,5,33,23],[33,52,33,55],[33,56,33,74],[37,152,37,170],[37,148,37,151],[36,148,36,151],[36,152,36,170],[36,80,36,98],[36,52,36,55],[36,56,36,74],[38,148,38,151],[38,152,38,155],[38,156,38,157],[38,158,38,170],[36,76,36,79],[38,110,38,122],[33,128,33,146],[34,128,34,146],[34,124,34,127],[105,5,105,23],[74,6,74,23],[74,52,74,62],[47,9,47,10],[47,11,47,23],[34,152,34,170],[34,80,34,98],[34,76,34,79],[35,54,35,57],[35,58,35,61],[35,62,35,65],[35,66,35,68],[79,14,79,15],[80,2,80,5],[80,8,80,11],[78,0,78,5],[83,0,83,3],[105,52,105,60],[70,12,70,17],[73,12,73,17],[72,3,72,23],[33,148,33,151],[33,152,33,170],[61,1,61,4],[64,5,64,23],[64,1,64,4],[37,56,37,74],[37,52,37,55],[37,80,37,98],[37,76,37,79],[37,104,37,122],[37,100,37,103],[42,1,42,4],[42,5,42,23],[51,1,51,4],[51,5,51,23],[60,1,60,4],[60,5,60,23],[54,1,54,4],[54,5,54,23],[33,76,33,79],[33,80,33,98],[33,100,33,103],[33,104,33,122],[33,124,33,127]]}
[null,"【第一面】",null,null,null,null,null,null,null,null,null,null,null,null,null,null,null,null,null,null,null,null,null,null,null,"計画通知番号","申請・通知年月日","申請者・通知者官職","【項目】通知書番号","【項目】交付年月日","【項目】交付者","【項目】概要","任意の理由"]
[null,null,"申請書選択",null,null,"申請書",null,null,null," ←申請の種類をプルダウンメニューから選択してください",null,null,null,null,null,null,null,null,null,null,null,null,null,null,"申請書",null,"申請年月日","申請者氏名"]
[null,null,null,null,null,null,null,null,null,null,null,null,null,null,null,null,null,null,null,null,null,null,null,null,"計画変更",null,"申請年月日","申請者氏名","適合判定通知書番号","適合判定通知書交付年月日","適合判定通知書交付者","計画変更の概要"]
[{"$f":"VLOOKUP(入力用!F2,Y1:AF7,3,FALSE)","v":"申請年月日"},null,null,null,null,null,null,null,null,null,{"$f":"VLOOKUP(入力用!F2,Y1:AF7,2,FALSE)&\"\"","v":""},null,null,null,{"$f":"IF(K4=\"\",\"\",\"第\")","v":""},null,null,null,null,null,null,null,null,{"$f":"IF(K4=\"\",\"\",\"号\")","v":""},"計画通知","計画通知番号","通知年月日","通知者官職",null,null,null,null,null,null,null,null,null,null,null,null,null,null,null,null,null,null,null,null,null,null,null,null,"【申請者別紙用】"]
[{"$f":"VLOOKUP(入力用!F2,Y1:AF7,4,FALSE)","v":"申請者氏名"},null,null,null,null,null,null,null,"会社名",null,null,null,null,null,null,null,null,null,null,null,null,null,null,null,"計画変更計画通知","計画通知番号","通知年月日","通知者官職","適合判定通知書番号","適合判定通知書交付年月日","適合判定通知書交付者","計画変更の概要",null,null,null,null,null,null,null,null,null,null,null,null,null,null,null,null,null,null,null,"申請者２",null,null,null,null,null,null,null,"会社名"]
[null,null,null,null,null,null,null,"氏名",null,null,null,null,null,null,null,null,null,null,null,null,null,null,null,null,"任意",null,"申請年月日","申請者氏名",null,null,null,null,{"$f":"\"構造計算適合性判定（任意）\"&CHAR(10)&\"を申請する理由\"","v":"構造計算適合性判定（任意）\nを申請する理由"},null,null,null,null,null,null,null,null,null,null,null,null,null,null,null,null,null,null,null,null,null,null,null,null,null,"氏名"]
[null,null,null,null,null,null,null,null,null,null,null,null,null,null,null,null,null,null,null,null,null,null,null,null,"計画変更任意",null,"申請年月日","申請者氏名","適合判定通知書番号","適合判定通知書交付年月日","適合判定通知書交付者","計画変更の概要",{"$f":"\"構造計算適合性判定（任意）\"&CHAR(10)&\"を申請する理由\"","v":"構造計算適合性判定（任意）\nを申請する理由"}]
["設計者氏名",null,null,null,null,null,null,null,"会社名",null,null,null,null,null,null,null,null,null,null,null,null,null,null,null,null,null,null,null,null,null,null,null,null,null,null,null,null,null,null,null,null,null,null,null,null,null,null,null,null,null,null,"申請者３",null,null,null,null,null,null,null,"会社名"]
[null,null,null,null,null,null,null,"氏名",null,null,null,null,null,null,null,null,null,null,null,null,null,null,null,null,null,null,"フラグ","通知番号","通知日",null,null,null,null,null,null,null,null,null,null,null,null,null,null,null,null,null,null,null,null,null,null,null,null,null,null,null,null,null,"氏名"]
[null,null,null,null,null,null,null,null,null,null,null,null,null,null,null,null,null,null,null,null,null,null,null,null,null,"計画通知",{"$f":"IF(A4=\"通知年月日\",1,\"\")","v":""},{"$f":"IF(bukken_KEIKAKU_TUUTI_FLAG=1,P4&\"\",\"\")","v":""},{"$f":"IF(bukken_KEIKAKU_TUUTI_FLAG=1,TEXT(E4,\"yyyy/m/d\"),\"\")","v":""}]
[{"$f":"VLOOKUP(入力用!F2,Y1:AF7,5,FALSE)&\"\"","v":""},null,null,null,null,null,null,null,null,{"$f":"IF(A11=\"\",\"\",\"第\")","v":""},null,null,null,null,null,null,null,null,null,null,null,null,null,{"$f":"IF(A11=\"\",\"\",\"号\")","v":""},null,null,null,null,null,null,null,null,null,null,null,null,null,null,null,null,null,null,null,null,null,null,null,null,null,null,null,"申請者４",null,null,null,null,null,null,null,"会社名"]
[{"$f":"VLOOKUP(入力用!F2,Y1:AF7,6,FALSE)&\"\"","v":""},null,null,null,null,null,null,null,null,{"$f":"IF($A12=\"\",\"\",\"(西暦)\")","v":""},null,null,null,null,{"$f":"IF($A12=\"\",\"\",\"年\")","v":""},null,null,{"$f":"IF($A12=\"\",\"\",\"月\")","v":""},null,null,{"$f":"IF($A12=\"\",\"\",\"日\")","v":""},null,null,null,null,"交付日付：",{"$f":"IF(AND(LEFT(F2,4)=\"計画変更\",L12<>\"\",P12<>\"\",S12<>\"\"),CONCATENATE(L12,\"/\",P12,\"/\",S12),\"\")","v":""},null,null,null,null,null,null,null,null,null,null,null,null,null,null,null,null,null,null,null,null,null,null,null,null,null,null,null,null,null,null,null,"氏名"]
[{"$f":"VLOOKUP(入力用!F2,Y1:AF7,7,FALSE)&\"\"","v":""},null,null,null,null,null,null,null,null,null,null,null,null,null,null,null,null,null,null,null,null,null,null,null,null,null,null,null,null,null,null,null,null,null,null,null,null,null,null,null,null,null,null,null,null,null,null,null,null,null,null,"申請者５",null,null,null,null,null,null,null,"会社名"]
[null,null,null,null,null,null,null,null,null,null,null,null,null,null,null,null,null,null,null,null,null,null,null,null,null,null,null,null,null,null,null,null,null,null,null,null,null,null,null,null,null,null,null,null,null,null,null,null,null,null,null,null,null,null,null,null,null,null,"氏名"]
[{"$f":"VLOOKUP(入力用!F2,Y1:AF7,8,FALSE)&\"\"","v":""}]
[{"$f":"VLOOKUP(入力用!F2,Y1:AG7,9,FALSE)&\"\"","v":""}]
[]
[null,"【第二面】",null,null,null,null,null,null,null,null,null,null,null,null,null,null,null,null,null,null,null,null,null,null,null,null,null,null,null,null,null,null,null,null,null,null,null,null,null,null,null,null,null,null,null,null,null,null,null,null,null,null,"【別紙用】"]
["建築主","会社名フリガナ",null,null,null,null,null,null,null,null,null,null,null,null,null,null,null,null,null,null,null,null,null,null,null,null,null,null,null,null,null,null,null,null,null,null,null,null,null,null,null,null,null,null,null,null,null,null,null,null,null,"建築主（2人目）","会社名フリガナ",null,null,null,null,null,null,null,null,null,null,null,null,null,null,null,null,null,null,null,null,null,null,"建築主（3人目）","会社名フリガナ",null,null,null,null,null,null,null,null,null,null,null,null,null,null,null,null,null,null,null,null,null,null,"建築主（4人目）","会社名フリガナ",null,null,null,null,null,null,null,null,null,null,null,null,null,null,null,null,null,null,null,null,null,null,"建築主（5人目）","会社名フリガナ"]
[null,"会社名",null,null,null,null,null,null,null,null,null,null,null,null,null,null,null,null,null,null,null,null,null,null,null,null,null,null,null,null,null,null,null,null,null,null,null,null,null,null,null,null,null,null,null,null,null,null,null,null,null,null,"会社名",null,null,null,null,null,null,null,null,null,null,null,null,null,null,null,null,null,null,null,null,null,null,null,"会社名",null,null,null,null,null,null,null,null,null,null,null,null,null,null,null,null,null,null,null,null,null,null,null,"会社名",null,null,null,null,null,null,null,null,null,null,null,null,null,null,null,null,null,null,null,null,null,null,null,"会社名"]
[null,"氏名のフリガナ",null,null,null,null,null,null,null,null,null,null,null,null,null,null,null,null,null,null,null,null,null,null,null,null,null,null,null,null,null,null,null,null,null,null,null,null,null,null,null,null,null,null,null,null,null,null,null,null,null,null,"氏名のフリガナ",null,null,null,null,null,null,null,null,null,null,null,null,null,null,null,null,null,null,null,null,null,null,null,"氏名のフリガナ",null,null,null,null,null,null,null,null,null,null,null,null,null,null,null,null,null,null,null,null,null,null,null,"氏名のフリガナ",null,null,null,null,null,null,null,null,null,null,null,null,null,null,null,null,null,null,null,null,null,null,null,"氏名のフリガナ"]
[null,"氏名",null,null,null,null,null,null,null,null,null,null,null,null,null,null,null,null,null,null,null,null,null,null,null,null,null,null,null,null,null,null,null,null,null,null,null,null,null,null,null,null,null,null,null,null,null,null,null,null,null,null,"氏名",null,null,null,null,null,null,null,null,null,null,null,null,null,null,null,null,null,null,null,null,null,null,null,"氏名",null,null,null,null,null,null,null,null,null,null,null,null,null,null,null,null,null,null,null,null,null,null,null,"氏名",null,null,null,null,null,null,null,null,null,null,null,null,null,null,null,null,null,null,null,null,null,null,null,"氏名"]
[null,"郵便番号　〒",null,null,null,null,null,null,null,"住所",null,null,null,null,null,null,null,null,null,null,null,null,null,null,null,null,null,null,null,null,null,null,null,null,null,null,null,null,null,null,null,null,null,null,null,null,null,null,null,null,null,null,"郵便番号　〒",null,null,null,null,null,null,null,"住所",null,null,null,null,null,null,null,null,null,null,null,null,null,null,null,"郵便番号　〒",null,null,null,null,null,null,null,"住所",null,null,null,null,null,null,null,null,null,null,null,null,null,null,null,"郵便番号　〒",null,null,null,null,null,null,null,"住所",null,null,null,null,null,null,null,null,null,null,null,null,null,null,null,"郵便番号　〒",null,null,null,null,null,null,null,"住所"]
[null,"電話番号",null,null,null,null,null,null,null,null,null,null,null,null,null,null,null,null,null,null,null,null,null,null,null,null,null,null,null,null,null,null,null,null,null,null,null,null,null,null,null,null,null,null,null,null,null,null,null,null,null,null,"電話番号",null,null,null,null,null,null,null,null,null,null,null,null,null,null,null,null,null,null,null,null,null,null,null,"電話番号",null,null,null,null,null,null,null,null,null,null,null,null,null,null,null,null,null,null,null,null,null,null,null,"電話番号",null,null,null,null,null,null,null,null,null,null,null,null,null,null,null,null,null,null,null,null,null,null,null,"電話番号"]
["代理者","資格",null,null,null,null,null,"建築士",null,null,null,null,null,"登録",null,null,"第",null,null,null,null,null,null,"号",null,null,null,null,null,null,null,null,null,null,null,null,null,null,null,null,null,null,null,null,null,null,null,null,null,null,null,"代理者（2人目）","資格",null,null,null,null,null,"建築士",null,null,null,null,null,"登録",null,null,"第",null,null,null,null,null,null,"号"]
[null,"氏名のフリガナ",null,null,null,null,null,null,null,null,null,null,null,null,null,null,null,null,null,null,null,null,null,null,null,null,null,null,null,null,null,null,null,null,null,null,null,null,null,null,null,null,null,null,null,null,null,null,null,null,null,null,"氏名のフリガナ"]
[null,"氏名",null,null,null,null,null,null,null,null,null,null,null,null,null,null,null,null,null,null,null,null,null,null,null,null,null,null,null,null,null,null,null,null,null,null,null,null,null,null,null,null,null,null,null,null,null,null,null,null,null,null,"氏名"]
[null,null,null,null,null,null,null,"建築士事務所",null,null,null,null,null,null,null,"知事登録",null,null,"第",null,null,null,null,"号",null,null,null,null,null,null,null,null,null,null,null,null,null,null,null,null,null,null,null,null,null,null,null,null,null,null,null,null,null,null,null,null,null,null,"建築士事務所",null,null,null,null,null,null,null,"知事登録",null,null,"第",null,null,null,null,"号"]
[null,"事務所フリガナ",null,null,null,null,null,null,null,null,null,null,null,null,null,null,null,null,null,null,null,null,null,null,null,null,null,null,null,null,null,null,null,null,null,null,null,null,null,null,null,null,null,null,null,null,null,null,null,null,null,null,"事務所フリガナ"]
[null,"事務所名",null,null,null,null,null,null,null,null,null,null,null,null,null,null,null,null,null,null,null,null,null,null,null,null,null,null,null,null,null,null,null,null,null,null,null,null,null,null,null,null,null,null,null,null,null,null,null,null,null,null,"事務所名"]
[null,"郵便番号　〒",null,null,null,null,null,null,null,"住所",null,null,null,null,null,null,null,null,null,null,null,null,null,null,null,null,null,null,null,null,null,null,null,null,null,null,null,null,null,null,null,null,null,null,null,null,null,null,null,null,null,null,"郵便番号　〒",null,null,null,null,null,null,null,"住所"]
[null,"電話番号",null,null,null,null,null,null,null,"mail",null,null,null,null,null,null,null,null,null,null,null,null,null,null,null,null,null,null,null,null,null,null,null,null,null,null,null,null,null,"1項","3項","番号",null,null,null,null,null,null,null,null,null,null,"電話番号",null,null,null,null,null,null,null,"mail"]
["代表となる設計者","資格",null,null,null,null,null,"建築士",null,null,null,null,null,"登録",null,null,"第",null,null,null,null,null,null,"号",null,null,null,null,null,null,null,null,null,null,null,null,null,null,null,null,null,null,null,null,null,null,null,null,null,null,null,"その他の設計者４","資格",null,null,null,null,null,"建築士",null,null,null,null,null,"登録",null,null,"第",null,null,null,null,null,null,"号","その他の設計者５","資格",null,null,null,null,null,"建築士",null,null,null,null,null,"登録",null,null,"第",null,null,null,null,null,null,"号","その他の設計者６","資格",null,null,null,null,null,"建築士",null,null,null,null,null,"登録",null,null,"第",null,null,null,null,null,null,"号","その他の設計者７","資格",null,null,null,null,null,"建築士",null,null,null,null,null,"登録",null,null,"第",null,null,null,null,null,null,"号","その他の設計者８","資格",null,null,null,null,null,"建築士",null,null,null,null,null,"登録",null,null,"第",null,null,null,null,null,null,"号"]
[null,"氏名のフリガナ",null,null,null,null,null,null,null,null,null,null,null,null,null,null,null,null,null,null,null,null,null,null,null,null,null,null,null,null,null,null,null,null,null,null,null,null,null,null,null,null,null,"1項","3項","番号","1項","3項","番号",null,null,null,"氏名のフリガナ",null,null,null,null,null,null,null,null,null,null,null,null,null,null,null,null,null,null,null,null,null,null,null,"氏名のフリガナ",null,null,null,null,null,null,null,null,null,null,null,null,null,null,null,null,null,null,null,null,null,null,null,"氏名のフリガナ",null,null,null,null,null,null,null,null,null,null,null,null,null,null,null,null,null,null,null,null,null,null,null,"氏名のフリガナ",null,null,null,null,null,null,null,null,null,null,null,null,null,null,null,null,null,null,null,null,null,null,null,"氏名のフリガナ"]
[null,"氏名",null,null,null,{"$f":"J9&\"\"","v":""},null,null,null,null,null,null,null,null,null,null,null,null,null,null,null,null,null,null,null,null,null,null,null,null,null,null,null,null,null,null,null,null,null,null,null,null,null,{"$f":"IF(_struct1_architectindex=4, \"1\", IF(COUNTIF(AN71:AU71,4)>0,1,\"\"))","v":""},{"$f":"IF(_struct3_architectindex=4, \"1\",  IF(COUNTIF(AN74:AU74,4)>0,1,\"\"))","v":""},{"$f":"IF(_struct1_architectindex=4, _struct1_no & \"\", IF(_struct3_architectindex=4, _struct3_no & \"\", _xlfn.IFNA(HLOOKUP(4,AN71:AU72,2,FALSE),_xlfn.IFNA(HLOOKUP(4,AN74:AU76,2,FALSE),\"\"))))","v":""},{"$f":"IF(_struct1_architectindex=7, \"1\", IF(COUNTIF(AN71:AU71,7)>0,1,\"\"))","v":""},{"$f":"IF(_struct3_architectindex=7, \"1\",  IF(COUNTIF(AN74:AU74,7)>0,1,\"\"))","v":""},{"$f":"IF(_struct1_architectindex=7, _struct1_no & \"\", IF(_struct3_architectindex=7, _struct3_no & \"\",_xlfn.IFNA(HLOOKUP(7,AN71:AU72,2,FALSE),_xlfn.IFNA(HLOOKUP(7,AN74:AU76,2,FALSE),\"\"))))","v":""},null,null,null,"氏名",null,null,null,null,null,null,null,null,null,null,null,null,null,null,null,null,null,null,null,null,null,null,null,"氏名",null,null,null,null,null,null,null,null,null,null,null,null,null,null,null,null,null,null,null,null,null,null,null,"氏名",null,null,null,null,null,null,null,null,null,null,null,null,null,null,null,null,null,null,null,null,null,null,null,"氏名",null,null,null,null,null,null,null,null,null,null,null,null,null,null,null,null,null,null,null,null,null,null,null,"氏名"]
[null,null,null,null,null,null,null,"建築士事務所",null,null,null,null,null,null,null,"知事登録",null,null,"第",null,null,null,null,"号",null,null,null,null,null,null,null,null,null,null,null,null,null,null,null,null,null,null,null,null,null,null,null,null,null,null,null,null,null,null,{"$f":"IF(AZ41=\"☑\",D63,\"\")&\"\"","v":""},null,null,null,"建築士事務所",null,null,null,{"$f":"IF(AZ41=\"☑\",L63,\"\")&\"\"","v":""},null,null,null,"知事登録",null,null,"第",{"$f":"IF(AZ41=\"☑\",T63,\"\")&\"\"","v":""},null,null,null,"号",null,null,null,{"$f":"IF(BX41=\"☑\",BC36,\"\")&\"\"","v":""},null,null,null,"建築士事務所",null,null,null,{"$f":"IF(BX41=\"☑\",BK36,\"\")&\"\"","v":""},null,null,null,"知事登録",null,null,"第",{"$f":"IF(BX41=\"☑\",BS36,\"\")&\"\"","v":""},null,null,null,"号",null,null,null,{"$f":"IF(CV41=\"☑\",CA36,\"\")&\"\"","v":""},null,null,null,"建築士事務所",null,null,null,{"$f":"IF(CV41=\"☑\",CI36,\"\")&\"\"","v":""},null,null,null,"知事登録",null,null,"第",{"$f":"IF(CV41=\"☑\",CQ36,\"\")&\"\"","v":""},null,null,null,"号",null,null,null,{"$f":"IF(DT41=\"☑\",CY36,\"\")&\"\"","v":""},null,null,null,"建築士事務所",null,null,null,{"$f":"IF(DT41=\"☑\",DG36,\"\")&\"\"","v":""},null,null,null,"知事登録",null,null,"第",{"$f":"IF(DT41=\"☑\",DO36,\"\")&\"\"","v":""},null,null,null,"号",null,null,null,{"$f":"IF(ER41=\"☑\",DW36,\"\")&\"\"","v":""},null,null,null,"建築士事務所",null,null,null,{"$f":"IF(ER41=\"☑\",EE36,\"\")&\"\"","v":""},null,null,null,"知事登録",null,null,"第",{"$f":"IF(ER41=\"☑\",EM36,\"\")&\"\"","v":""},null,null,null,"号"]
[null,"事務所フリガナ",null,null,null,null,null,null,null,null,null,null,null,null,null,null,null,null,null,null,null,null,null,null,null,null,null,null,null,null,null,null,null,null,null,null,null,null,null,null,null,null,null,"1項","3項","番号","1項","3項","番号",null,null,null,"事務所フリガナ",null,null,null,{"$f":"IF(AZ41=\"☑\",F64,\"\")&\"\"","v":""},null,null,null,null,null,null,null,null,null,null,null,null,null,null,null,null,null,null,null,"事務所フリガナ",null,null,null,{"$f":"IF(BX41=\"☑\",BE37,\"\")&\"\"","v":""},null,null,null,null,null,null,null,null,null,null,null,null,null,null,null,null,null,null,null,"事務所フリガナ",null,null,null,{"$f":"IF(CV41=\"☑\",CC37,\"\")&\"\"","v":""},null,null,null,null,null,null,null,null,null,null,null,null,null,null,null,null,null,null,null,"事務所フリガナ",null,null,null,{"$f":"IF(DT41=\"☑\",DA37,\"\")&\"\"","v":""},null,null,null,null,null,null,null,null,null,null,null,null,null,null,null,null,null,null,null,"事務所フリガナ",null,null,null,{"$f":"IF(ER41=\"☑\",DY37,\"\")&\"\"","v":""}]
[null,"事務所名",null,null,null,{"$f":"J8&\"\"","v":""},null,null,null,null,null,null,null,null,null,null,null,null,null,null,null,null,null,null,null,null,null,null,null,null,null,null,null,null,null,null,null,null,null,null,null,null,null,{"$f":"IF(_struct1_architectindex=5, \"1\",IF(COUNTIF(AN71:AU71,5)>0,1,\"\"))","v":""},{"$f":"IF(_struct3_architectindex=5, \"1\",  IF(COUNTIF(AN74:AU74,5)>0,1,\"\"))","v":""},{"$f":"IF(_struct1_architectindex=5, _struct1_no & \"\", IF(_struct3_architectindex=5, _struct3_no & \"\",_xlfn.IFNA(HLOOKUP(5,AN71:AU72,2,FALSE),_xlfn.IFNA(HLOOKUP(5,AN74:AU76,2,FALSE),\"\"))))","v":""},{"$f":"IF(_struct1_architectindex=8, \"1\",IF(COUNTIF(AN71:AU71,8)>0,1,\"\"))","v":""},{"$f":"IF(_struct3_architectindex=8, \"1\", IF(COUNTIF(AN74:AU74,8)>0,1,\"\"))","v":""},{"$f":"IF(_struct1_architectindex=8, _struct1_no & \"\", IF(_struct3_architectindex=8, _struct3_no & \"\", _xlfn.IFNA(HLOOKUP(8,AN71:AU72,2,FALSE),_xlfn.IFNA(HLOOKUP(8,AN74:AU76,2,FALSE),\"\"))))","v":""},null,null,null,"事務所名",null,null,null,{"$f":"IF(AZ41=\"☑\",F65,\"\")&\"\"","v":""},null,null,null,null,null,null,null,null,null,null,null,null,null,null,null,null,null,null,null,"事務所名",null,null,null,{"$f":"IF(BX41=\"☑\",BE38,\"\")&\"\"","v":""},null,null,null,null,null,null,null,null,null,null,null,null,null,null,null,null,null,null,null,"事務所名",null,null,null,{"$f":"IF(CV41=\"☑\",CC38,\"\")&\"\"","v":""},null,null,null,null,null,null,null,null,null,null,null,null,null,null,null,null,null,null,null,"事務所名",null,null,null,{"$f":"IF(DT41=\"☑\",DA38,\"\")&\"\"","v":""},null,null,null,null,null,null,null,null,null,null,null,null,null,null,null,null,null,null,null,"事務所名",null,null,null,{"$f":"IF(ER41=\"☑\",DY38,\"\")&\"\"","v":""}]
[null,"郵便番号　〒",null,null,null,null,null,null,null,"住所",null,null,null,null,null,null,null,null,null,null,null,null,null,null,null,null,null,null,null,null,null,null,null,null,null,null,null,null,null,null,null,null,null,"1項","3項","番号",null,null,null,null,null,null,"郵便番号　〒",null,null,null,{"$f":"IF(AZ41=\"☑\",F66,\"\")&\"\"","v":""},null,null,null,"住所",null,{"$f":"IF(AZ41=\"☑\",L66,\"\")&\"\"","v":""},null,null,null,null,null,null,null,null,null,null,null,null,null,"郵便番号　〒",null,null,null,{"$f":"IF(BX41=\"☑\",BE39,\"\")&\"\"","v":""},null,null,null,"住所",null,{"$f":"IF(BX41=\"☑\",BK39,\"\")&\"\"","v":""},null,null,null,null,null,null,null,null,null,null,null,null,null,"郵便番号　〒",null,null,null,{"$f":"IF(CV41=\"☑\",CC39,\"\")&\"\"","v":""},null,null,null,"住所",null,{"$f":"IF(CV41=\"☑\",CI39,\"\")&\"\"","v":""},null,null,null,null,null,null,null,null,null,null,null,null,null,"郵便番号　〒",null,null,null,{"$f":"IF(DT41=\"☑\",DA39,\"\")&\"\"","v":""},null,null,null,"住所",null,{"$f":"IF(DT41=\"☑\",DG39,\"\")&\"\"","v":""},null,null,null,null,null,null,null,null,null,null,null,null,null,"郵便番号　〒",null,null,null,{"$f":"IF(ER41=\"☑\",DY39,\"\")&\"\"","v":""},null,null,null,"住所",null,{"$f":"IF(ER41=\"☑\",EE39,\"\")&\"\"","v":""}]
[null,"電話番号",null,null,null,null,null,null,null,null,null,null,null,null,null,null,null,null,null,null,null,null,null,null,null,null,null,null,null,null,null,null,null,null,null,null,null,null,null,"1項","3項","番号",null,{"$f":"IF(_struct1_architectindex=6, \"1\", IF(COUNTIF(AN71:AU71,6)>0,1,\"\"))","v":""},{"$f":"IF(_struct3_architectindex=6, \"1\", IF(COUNTIF(AN74:AU74,6)>0,1,\"\"))","v":""},{"$f":"IF(_struct1_architectindex=6, _struct1_no & \"\", IF(_struct3_architectindex=6, _struct3_no & \"\",_xlfn.IFNA(HLOOKUP(6,AN71:AU72,2,FALSE),_xlfn.IFNA(HLOOKUP(6,AN74:AU76,2,FALSE),\"\"))))","v":""},null,null,null,null,null,"前者\nコピー","電話番号",null,null,null,{"$f":"IF(AZ41=\"☑\",F67,\"\")&\"\"","v":""},null,null,null,null,null,null,null,null,null,null,null,null,null,null,null,null,null,null,"前者\nコピー","電話番号",null,null,null,{"$f":"IF(BX41=\"☑\",BE40,\"\")&\"\"","v":""},null,null,null,null,null,null,null,null,null,null,null,null,null,null,null,null,null,null,"前者\nコピー","電話番号",null,null,null,{"$f":"IF(CV41=\"☑\",CC40,\"\")&\"\"","v":""},null,null,null,null,null,null,null,null,null,null,null,null,null,null,null,null,null,null,"前者\nコピー","電話番号",null,null,null,{"$f":"IF(DT41=\"☑\",DA40,\"\")&\"\"","v":""},null,null,null,null,null,null,null,null,null,null,null,null,null,null,null,null,null,null,"前者\nコピー","電話番号",null,null,null,{"$f":"IF(ER41=\"☑\",DY40,\"\")&\"\"","v":""}]
[null,"作成又は確認した設計図書",null,null,null,null,null,null,null,null,null,null,null,null,null,null,null,null,null,null,null,null,null,null,null,null,null,null,null,null,null,null,null,null,null,null,null,null,null,{"$f":"IF(_struct1_architectindex=0, \"1\", IF(COUNTIF(AN71:AU71,0)>0,1,\"\"))","v":""},{"$f":"IF(_struct3_architectindex=0, \"1\",  IF(COUNTIF(AN74:AU74,0)>0,1,\"\"))","v":""},{"$f":"IF(_struct1_architectindex=0,_struct1_no&\"\",IF(_struct3_architectindex=0,_struct3_no&\"\",_xlfn.IFNA(HLOOKUP(0,AN71:AU72,2,FALSE),_xlfn.IFNA(HLOOKUP(0,AN74:AU76,2,FALSE),\"\"))))","v":""},null,null,null,null,null,null,null,null,null,"□","作成又は確認した設計図書",null,null,null,null,null,null,null,null,null,null,null,null,null,null,null,null,null,null,null,null,null,null,"□","作成又は確認した設計図書",null,null,null,null,null,null,null,null,null,null,null,null,null,null,null,null,null,null,null,null,null,null,"□","作成又は確認した設計図書",null,null,null,null,null,null,null,null,null,null,null,null,null,null,null,null,null,null,null,null,null,null,"□","作成又は確認した設計図書",null,null,null,null,null,null,null,null,null,null,null,null,null,null,null,null,null,null,null,null,null,null,"□","作成又は確認した設計図書"]
["その他の設計者１","資格",null,null,null,null,null,"建築士",null,null,null,null,null,"登録",null,null,"第",null,null,null,null,null,null,"号"]
[null,"氏名のフリガナ"]
[null,"氏名"]
[null,null,null,{"$f":"IF(A50=\"☑\",D36,\"\")&\"\"","v":""},null,null,null,"建築士事務所",null,null,null,{"$f":"IF(A50=\"☑\",L36,\"\")&\"\"","v":""},null,null,null,"知事登録",null,null,"第",{"$f":"IF(A50=\"☑\",T36,\"\")&\"\"","v":""},null,null,null,"号"]
[null,"事務所フリガナ",null,null,null,{"$f":"IF(A50=\"☑\",F37,\"\")&\"\"","v":""}]
[null,"事務所名",null,null,null,{"$f":"IF(A50=\"☑\",F38,\"\")&\"\"","v":""}]
[null,"郵便番号　〒",null,null,null,{"$f":"IF(A50=\"☑\",F39,\"\")&\"\"","v":""},null,null,null,"住所",null,{"$f":"IF(A50=\"☑\",L39,\"\")&\"\"","v":""}]
["前者\nコピー","電話番号",null,null,null,{"$f":"IF(A50=\"☑\",F40,\"\")&\"\"","v":""},null,null,null,null,null,null,null,null,null,null,null,null,null,null,null,null,null,null,null,null,null,null,null,null,null,null,null,null,null,null,null,null,null,"1項","3項","番号"]
["□","作成又は確認した設計図書",null,null,null,null,null,null,null,null,null,null,null,null,null,null,null,null,null,null,null,null,null,null,null,null,null,null,null,null,null,null,null,null,null,null,null,null,null,{"$f":"IF(_struct1_architectindex=1, \"1\", IF(COUNTIF(AN71:AU71,1)>0,1,\"\"))","v":""},{"$f":"IF(_struct3_architectindex=1, \"1\",  IF(COUNTIF(AN74:AU74,1)>0,1,\"\"))","v":""},{"$f":"IF(_struct1_architectindex=1, _struct1_no & \"\", IF(_struct3_architectindex=1, _struct3_no & \"\",_xlfn.IFNA(HLOOKUP(1,AN71:AU72,2,FALSE),_xlfn.IFNA(HLOOKUP(1,AN74:AU76,2,FALSE),\"\"))))","v":""}]
["その他の設計者２","資格",null,null,null,null,null,"建築士",null,null,null,null,null,"登録",null,null,"第",null,null,null,null,null,null,"号"]
[null,"氏名のフリガナ"]
[null,"氏名"]
[null,null,null,{"$f":"IF(A59=\"☑\",D45,\"\")&\"\"","v":""},null,null,null,"建築士事務所",null,null,null,{"$f":"IF(A59=\"☑\",L45,\"\")&\"\"","v":""},null,null,null,"知事登録",null,null,"第",{"$f":"IF(A59=\"☑\",T45,\"\")&\"\"","v":""},null,null,null,"号"]
[null,"事務所フリガナ",null,null,null,{"$f":"IF(A59=\"☑\",F46,\"\")&\"\"","v":""}]
[null,"事務所名",null,null,null,{"$f":"IF(A59=\"☑\",F47,\"\")&\"\"","v":""}]
[null,"郵便番号　〒",null,null,null,{"$f":"IF(A59=\"☑\",F48,\"\")&\"\"","v":""},null,null,null,"住所",null,{"$f":"IF(A59=\"☑\",L48,\"\")&\"\"","v":""}]
["前者\nコピー","電話番号",null,null,null,{"$f":"IF(A59=\"☑\",F49,\"\")&\"\"","v":""},null,null,null,null,null,null,null,null,null,null,null,null,null,null,null,null,null,null,null,null,null,null,null,null,null,null,null,null,null,null,null,null,null,"1項","3項","番号"]
["□","作成又は確認した設計図書",null,null,null,null,null,null,null,null,null,null,null,null,null,null,null,null,null,null,null,null,null,null,null,null,null,null,null,null,null,null,null,null,null,null,null,null,null,{"$f":"IF(_struct1_architectindex=2, \"1\",IF(COUNTIF(AN71:AU71,2)>0,1,\"\"))","v":""},{"$f":"IF(_struct3_architectindex=2, \"1\", IF(COUNTIF(AN74:AU74,2)>0,1,\"\"))","v":""},{"$f":"IF(_struct1_architectindex=2, _struct1_no & \"\", IF(_struct3_architectindex=2, _struct3_no & \"\",_xlfn.IFNA(HLOOKUP(2,AN71:AU72,2,FALSE),_xlfn.IFNA(HLOOKUP(2,AN74:AU76,2,FALSE),\"\"))))","v":""}]
["その他の設計者３","資格",null,null,null,null,null,"建築士",null,null,null,null,null,"登録",null,null,"第",null,null,null,null,null,null,"号"]
[null,"氏名のフリガナ"]
[null,"氏名"]
[null,null,null,{"$f":"IF(A68=\"☑\",D54,\"\")&\"\"","v":""},null,null,null,"建築士事務所",null,null,null,{"$f":"IF(A68=\"☑\",L54,\"\")&\"\"","v":""},null,null,null,"知事登録",null,null,"第",{"$f":"IF(A68=\"☑\",T54,\"\")&\"\"","v":""},null,null,null,"号"]
[null,"事務所フリガナ",null,null,null,{"$f":"IF(A68=\"☑\",F55,\"\")&\"\"","v":""}]
[null,"事務所名",null,null,null,{"$f":"IF(A68=\"☑\",F56,\"\")&\"\"","v":""}]
[null,"郵便番号　〒",null,null,null,{"$f":"IF(A68=\"☑\",F57,\"\")&\"\"","v":""},null,null,null,"住所",null,{"$f":"IF(A68=\"☑\",L57,\"\")&\"\"","v":""}]
["前者\nコピー","電話番号",null,null,null,{"$f":"IF(A68=\"☑\",F58,\"\")&\"\"","v":""},null,null,null,null,null,null,null,null,null,null,null,null,null,null,null,null,null,null,null,null,null,null,null,null,null,null,null,null,null,null,null,null,null,"1項","3項","番号"]
["□","作成又は確認した設計図書",null,null,null,null,null,null,null,null,null,null,null,null,null,null,null,null,null,null,null,null,null,null,null,null,null,null,null,null,null,null,null,null,null,null,null,null,null,{"$f":"IF(_struct1_architectindex=3, \"1\", IF(COUNTIF(AN71:AU71,3)>0,1,\"\"))","v":""},{"$f":"IF(_struct3_architectindex=3, \"1\",  IF(COUNTIF(AN74:AU74,3)>0,1,\"\"))","v":""},{"$f":"IF(_struct1_architectindex=3, _struct1_no & \"\", IF(_struct3_architectindex=3, _struct3_no & \"\", _xlfn.IFNA(HLOOKUP(3,AN71:AU72,2,FALSE),_xlfn.IFNA(HLOOKUP(3,AN74:AU76,2,FALSE),\"\"))))","v":""}]
["構造設計一級","建築士法第20条の2第1項の表示をした者",null,null,null,null,null,null,null,null,null,null,null,null,null,null,null,null,null,null,null,null,null,null,null,null,null,null,null,null,null,null,null,null,null,null,null,null,null,null,null,null,null,null,null,null,null,null,null,null,null,"構造設計一級（2人目）","建築士法第20条の2第1項の表示をした者",null,null,null,null,null,null,null,null,null,null,null,null,null,null,null,null,null,null,null,null,null,null,"構造設計一級（3人目）","建築士法第20条の2第1項の表示をした者",null,null,null,null,null,null,null,null,null,null,null,null,null,null,null,null,null,null,null,null,null,null,"構造設計一級（4人目）","建築士法第20条の2第1項の表示をした者",null,null,null,null,null,null,null,null,null,null,null,null,null,null,null,null,null,null,null,null,null,null,"構造設計一級（5人目）","建築士法第20条の2第1項の表示をした者",null,null,null,null,null,null,null,null,null,null,null,null,null,null,null,null,null,null,null,null,null,null,"構造設計一級（6人目）","建築士法第20条の2第1項の表示をした者",null,null,null,null,null,null,null,null,null,null,null,null,null,null,null,null,null,null,null,null,null,null,"構造設計一級（7人目）","建築士法第20条の2第1項の表示をした者",null,null,null,null,null,null,null,null,null,null,null,null,null,null,null,null,null,null,null,null,null,null,"構造設計一級（8人目）","建築士法第20条の2第1項の表示をした者",null,null,null,null,null,null,null,null,null,null,null,null,null,null,null,null,null,null,null,null,null,null,"構造設計一級（9人目）","建築士法第20条の2第1項の表示をした者"]
[null,"氏名",null,null,null,null,null,null,null,null,null,null,null,null,null,null,null,null,null,null,null,null,null,null,null,null,null,null,null,null,null,null,null,null,null,null,null,null,null,{"$f":"IFERROR(MATCH(_struct1_name, _list_architect, 0)-2, \"\")","v":""},"0=代表、1～8=その他設計者",null,null,null,null,null,null,null,null,null,null,null,"氏名",null,null,null,null,null,null,null,null,null,null,null,null,null,null,null,null,null,null,null,null,null,null,null,"氏名",null,null,null,null,null,null,null,null,null,null,null,null,null,null,null,null,null,null,null,null,null,null,null,"氏名",null,null,null,null,null,null,null,null,null,null,null,null,null,null,null,null,null,null,null,null,null,null,null,"氏名",null,null,null,null,null,null,null,null,null,null,null,null,null,null,null,null,null,null,null,null,null,null,null,"氏名",null,null,null,null,null,null,null,null,null,null,null,null,null,null,null,null,null,null,null,null,null,null,null,"氏名",null,null,null,null,null,null,null,null,null,null,null,null,null,null,null,null,null,null,null,null,null,null,null,"氏名",null,null,null,null,null,null,null,null,null,null,null,null,null,null,null,null,null,null,null,null,null,null,null,"氏名"]
[null,"資格",null,"構造設計一級建築士交付",null,null,null,null,null,null,null,"第",null,null,null,null,null,null,"号",null,null,null,null,null,null,null,null,null,null,null,null,null,null,null,null,null,null,null,null,{"$f":"IFERROR(MATCH(BC70, _list_architect, 0)-2, \"\")","v":""},{"$f":"IFERROR(MATCH(CA70, _list_architect, 0)-2, \"\")","v":""},{"$f":"IFERROR(MATCH(CY70, _list_architect, 0)-2, \"\")","v":""},{"$f":"IFERROR(MATCH(DW70, _list_architect, 0)-2, \"\")","v":""},{"$f":"IFERROR(MATCH(EU70, _list_architect, 0)-2, \"\")","v":""},{"$f":"IFERROR(MATCH(FS70, _list_architect, 0)-2, \"\")","v":""},{"$f":"IFERROR(MATCH(GQ70, _list_architect, 0)-2, \"\")","v":""},{"$f":"IFERROR(MATCH(HO70, _list_architect, 0)-2, \"\")","v":""},null,null,null,null,null,"資格",null,"構造設計一級建築士交付",null,null,null,null,null,null,null,"第",null,null,null,null,null,null,"号",null,null,null,null,null,null,"資格",null,"構造設計一級建築士交付",null,null,null,null,null,null,null,"第",null,null,null,null,null,null,"号",null,null,null,null,null,null,"資格",null,"構造設計一級建築士交付",null,null,null,null,null,null,null,"第",null,null,null,null,null,null,"号",null,null,null,null,null,null,"資格",null,"構造設計一級建築士交付",null,null,null,null,null,null,null,"第",null,null,null,null,null,null,"号",null,null,null,null,null,null,"資格",null,"構造設計一級建築士交付",null,null,null,null,null,null,null,"第",null,null,null,null,null,null,"号",null,null,null,null,null,null,"資格",null,"構造設計一級建築士交付",null,null,null,null,null,null,null,"第",null,null,null,null,null,null,"号",null,null,null,null,null,null,"資格",null,"構造設計一級建築士交付",null,null,null,null,null,null,null,"第",null,null,null,null,null,null,"号",null,null,null,null,null,null,"資格",null,"構造設計一級建築士交付",null,null,null,null,null,null,null,"第",null,null,null,null,null,null,"号"]
[null,"建築士法第20条の2第3項の表示をした者",null,null,null,null,null,null,null,null,null,null,null,null,null,null,null,null,null,null,null,null,null,null,null,null,null,null,null,null,null,null,null,null,null,null,null,null,null,{"$f":"BL71&\"\"","v":""},{"$f":"CJ71&\"\"","v":""},{"$f":"DH71&\"\"","v":""},{"$f":"EF71&\"\"","v":""},{"$f":"FD71&\"\"","v":""},{"$f":"GB71&\"\"","v":""},{"$f":"GZ71&\"\"","v":""},{"$f":"HX71&\"\"","v":""},null,null,null,null,null,"建築士法第20条の2第3項の表示をした者",null,null,null,null,null,null,null,null,null,null,null,null,null,null,null,null,null,null,null,null,null,null,null,"建築士法第20条の2第3項の表示をした者",null,null,null,null,null,null,null,null,null,null,null,null,null,null,null,null,null,null,null,null,null,null,null,"建築士法第20条の2第3項の表示をした者",null,null,null,null,null,null,null,null,null,null,null,null,null,null,null,null,null,null,null,null,null,null,null,"建築士法第20条の2第3項の表示をした者",null,null,null,null,null,null,null,null,null,null,null,null,null,null,null,null,null,null,null,null,null,null,null,"建築士法第20条の2第3項の表示をした者",null,null,null,null,null,null,null,null,null,null,null,null,null,null,null,null,null,null,null,null,null,null,null,"建築士法第20条の2第3項の表示をした者",null,null,null,null,null,null,null,null,null,null,null,null,null,null,null,null,null,null,null,null,null,null,null,"建築士法第20条の2第3項の表示をした者",null,null,null,null,null,null,null,null,null,null,null,null,null,null,null,null,null,null,null,null,null,null,null,"建築士法第20条の2第3項の表示をした者"]
[null,"氏名",null,null,null,null,null,null,null,null,null,null,null,null,null,null,null,null,null,null,null,null,null,null,null,null,null,null,null,null,null,null,null,null,null,null,null,null,null,{"$f":"IFERROR(MATCH(_struct3_name, _list_architect, 0)-2, \"\")","v":""},"0=代表、1～8=その他設計者",null,null,null,null,null,null,null,null,null,null,null,"氏名",null,null,null,null,null,null,null,null,null,null,null,null,null,null,null,null,null,null,null,null,null,null,null,"氏名",null,null,null,null,null,null,null,null,null,null,null,null,null,null,null,null,null,null,null,null,null,null,null,"氏名",null,null,null,null,null,null,null,null,null,null,null,null,null,null,null,null,null,null,null,null,null,null,null,"氏名",null,null,null,null,null,null,null,null,null,null,null,null,null,null,null,null,null,null,null,null,null,null,null,"氏名",null,null,null,null,null,null,null,null,null,null,null,null,null,null,null,null,null,null,null,null,null,null,null,"氏名",null,null,null,null,null,null,null,null,null,null,null,null,null,null,null,null,null,null,null,null,null,null,null,"氏名",null,null,null,null,null,null,null,null,null,null,null,null,null,null,null,null,null,null,null,null,null,null,null,"氏名"]
[null,"資格",null,"構造設計一級建築士交付",null,null,null,null,null,null,null,"第",null,null,null,null,null,null,"号",null,null,null,null,null,null,null,null,null,null,null,null,null,null,null,null,null,null,null,null,{"$f":"IFERROR(MATCH(BC73, _list_architect, 0)-2, \"\")","v":""},{"$f":"IFERROR(MATCH(CA73, _list_architect, 0)-2, \"\")","v":""},{"$f":"IFERROR(MATCH(CY73, _list_architect, 0)-2, \"\")","v":""},{"$f":"IFERROR(MATCH(DW73, _list_architect, 0)-2, \"\")","v":""},{"$f":"IFERROR(MATCH(EU73, _list_architect, 0)-2, \"\")","v":""},{"$f":"IFERROR(MATCH(FS73, _list_architect, 0)-2, \"\")","v":""},{"$f":"IFERROR(MATCH(GQ73, _list_architect, 0)-2, \"\")","v":""},{"$f":"IFERROR(MATCH(HO73, _list_architect, 0)-2, \"\")","v":""},null,null,null,null,null,"資格",null,"構造設計一級建築士交付",null,null,null,null,null,null,null,"第",null,null,null,null,null,null,"号",null,null,null,null,null,null,"資格",null,"構造設計一級建築士交付",null,null,null,null,null,null,null,"第",null,null,null,null,null,null,"号",null,null,null,null,null,null,"資格",null,"構造設計一級建築士交付",null,null,null,null,null,null,null,"第",null,null,null,null,null,null,"号",null,null,null,null,null,null,"資格",null,"構造設計一級建築士交付",null,null,null,null,null,null,null,"第",null,null,null,null,null,null,"号",null,null,null,null,null,null,"資格",null,"構造設計一級建築士交付",null,null,null,null,null,null,null,"第",null,null,null,null,null,null,"号",null,null,null,null,null,null,"資格",null,"構造設計一級建築士交付",null,null,null,null,null,null,null,"第",null,null,null,null,null,null,"号",null,null,null,null,null,null,"資格",null,"構造設計一級建築士交付",null,null,null,null,null,null,null,"第",null,null,null,null,null,null,"号",null,null,null,null,null,null,"資格",null,"構造設計一級建築士交付",null,null,null,null,null,null,null,"第",null,null,null,null,null,null,"号"]
["地名地番\n※都道府県名から入力",null,null,null,null,null,null,null,null,null,null,null,null,null,null,null,null,null,null,null,null,null,null,null,null,null,null,null,null,null,null,null,null,null,null,null,null,null,null,null,null,null,null,null,null,null,null,null,null,null,null,null,"【こちらをクリック】別紙「地名地番」を入力する場合"]
["住居表示\n※都道府県名から入力",null,null,null,null,null,null,null,null,null,null,null,null,null,null,null,null,null,null,null,null,null,null,null,null,null,null,null,null,null,null,null,null,null,null,null,null,null,null,{"$f":"BL74&\"\"","v":""},{"$f":"CJ74&\"\"","v":""},{"$f":"DH74&\"\"","v":""},{"$f":"EF74&\"\"","v":""},{"$f":"FD74&\"\"","v":""},{"$f":"GB74&\"\"","v":""},{"$f":"GZ74&\"\"","v":""},{"$f":"HX74&\"\"","v":""}]
["確認の申請",null,null,null,null,null,"↓確認検査機関名を入力してください",null,null,null,null,null,null,null,null,null,null,"↓確認検査機関　所在地",null,null,null,null,null,null,null,null,null,null,null,null,null,null,null,null,null,null,null,null,null,null,null,null,null,null,null,"確認機関"]
[null,"申請済",null,null,"（",null,null,null,null,null,null,null,null,null,null,null,null,null,null,null,null,null,null,"）",null,null,null,null,null,null,null,null,null,null,null,null,null,null,null,{"$f":"IF(B78=\"申請済\", \"1\", IF(B78=\"未申請\", \"0\", \"\"))","v":"1"},"0=未申請、1=申請済",null,null,null,null,{"$f":"IF(bukken_PAGE2_KAKUNIN_SHINSEI_FLAG=\"1\",F78,\"\")&\"\"","v":""},{"$f":"IF(bukken_PAGE2_KAKUNIN_SHINSEI_FLAG=\"1\",Q78,\"\")&\"\"","v":""},{"$f":"IF(bukken_PAGE2_KAKUNIN_SHINSEI_FLAG=\"0\",F78,\"\")&\"\"","v":""},{"$f":"IF(bukken_PAGE2_KAKUNIN_SHINSEI_FLAG=\"0\",Q78,\"\")&\"\"","v":""}]
["工事種別"]
[null,"☐","新築",null,"☐","増築",null,"☐","改築",null,"☐","移転",null,"☐",{"$f":"IF(LEFT(F2,4)=\"計画変更\",\"用途変更\",\"\")","v":""},null,null,null,null,null,null,null,null,null,null,null,null,null,null,null,null,null,null,null,null,null,null,null,null,{"$f":"IF(B80=\"☑\", \"1\", \"\")","v":""},{"$f":"IF(E80=\"☑\", \"1\", \"\")","v":""},{"$f":"IF(H80=\"☑\", \"1\", \"\")","v":""},{"$f":"IF(K80=\"☑\", \"1\", \"\")","v":""},{"$f":"IF(B81=\"☑\", \"1\", \"\")","v":""},{"$f":"IF(H81=\"☑\", \"1\", \"\")","v":""},{"$f":"IF(LEFT(F2,4)=\"計画変更\",IF(N80=\"☑\", \"1\", \"\"),\"\")","v":""}]
[null,"☐","大規模の修繕",null,null,null,null,"☐","大規模の模様替"]
[]
[null,"【第三面】"]
["番号"]
["延べ面積",null,null,null,null,null,null,null,null,null,null,null,null,null,null,"㎡"]
["最高の高さ",null,null,null,null,null,null,null,null,null,null,null,null,null,null,"m"]
["最高の軒の高さ",null,null,null,null,null,null,null,null,null,null,null,null,null,null,"m"]
["階数",null,null,null,"地上",null,null,null,null,"階",null,null,null,"地下",null,null,null,null,"階"]
["構造",null,null,null,null,null,null,null,null,null,null,null,null,"一部"]
["☐","特定構造計算基準"]
["☐","特定増改築構造計算基準"]
["☐","建築基準法施行令第８１条第２項第１号イに掲げる構造計算"]
["☐","建築基準法施行令第８１条第２項第１号ロに掲げる構造計算"]
["☐","建築基準法施行令第８１条第２項第２号イに掲げる構造計算"]
["☐","建築基準法施行令第８１条第３号に掲げる構造計算"]
["（構造計算に用いたプログラム）"]
["名称"]
["区分"]
["☐","建築基準法第２０条第１項第２号イ又は第３号イの認定を受けたプログラム"]
[null,"（大臣認定番号",null,null,null,null,null,null,null,null,null,null,null,null,"）"]
["☐","その他のプログラム"]
["建築基準法施行令第１３７条の２各号に定める基準の区分",null,null,null,null,null,null,null,null,null,null,null,null,"（",null,null,null,null,null,null,null,null,null,"）"]
["備考"]
[]
[null,"【連絡票】",null,null,null,null,null,null,null,null,null,null,null,null,null,null,null,null,null,null,null,null,null,null,null,null,null,null,null,null,null,null,null,null,null,null,null,null,"この列は非表示化"]
["建築物の概要","建築物の名称",null,null,null,null,null,null,null,null,null,null,null,null,null,null,null,null,null,null,null,null,null,null,null,null,null,null,null,null,null,null,null,null,null,null,null,null,null,null,null,null,null,null,null,null,null,null,null,null,null,null,"【こちらをクリック】連絡票の入力・印刷"]
[null,"適判申請棟数",null,null,null,{"$f":"'入力用(第三面)'!E1","v":1},null,null,null,null,null,null,null,null,null,null,null,null,null,null,null,null,null,null,null,null,null,null,null,null,null,null,null,null,null,null,null,null,null,null,null,null,null,null,null,null,null,null,null,null,null,null,"【こちらをクリック】送付依頼書の入力・印刷"]
["構造設計者連絡先","会社名"]
[null,"部署名",null,null,null,null,null,null,null,null,null,"氏名"]
[null,"郵便番号〒",null,null,null,null,null,null,"住所"]
[null,"TEL"]
[null,"mail"]
["構造設計担当者の方へメールで指摘事項等の同時連絡を希望",null,null,null,null,null,null,null,null,null,null,null,null,null,null,"☐","する"]
["確認申請先","機関等名"]
[null,"支店・部署名",null,null,null,null,null,null,null,null,null,"担当者名"]
[null,"TEL",null,null,null,null,null,null,null,null,null,"mail"]
[null,"事前審査",null,null,"☐","済",null,"☐","実施中",null,null,"☐","未実施"]
[null,"○確認審査状況等"]
["請求書送付先","請求先宛名\n（会社名等）"]
[]
[null,"会社名",null,null,null,null,null,null,null,null,null,"部署名"]
[null,"氏名",null,null,null,null,null,null,null,null,null,"TEL"]
[null,"住所　〒"]
["備考"]
[]
[null,"【委任状】"]
["委任日"]

{"sheet":"入力用(第三面)","index":4,"n_rows":6,"n_cols":24,"rows_kept":6,"cut":false,"hidden":false,"merged":[[1,0,2,0],[1,1,1,3],[1,6,1,13],[1,16,1,19],[1,4,1,5]]}
[null,null,null,"棟数：",{"$f":"ROW(_tower_end) - ROW(_tower_row) - 1","v":1}]
["#","【1．番号】",null,null,"【2．延べ面積】",null,"【3．建築物の高さ等】",null,null,null,null,null,null,null,"【4．特定構造計算基準】","【5．構造計算の区分】","【6．構造計算に用いたプログラム】",null,null,null,"【7．令第137条の2】","【8．備考】"]
[null,"棟番号","枝番号","棟名称","延べ面積\n（㎡）","延べ面積\n（㎡）（補正値）","最高の\n高さ（ｍ）","最高の\n高さ（ｍ）\n(補正値)","最高の\n軒の高さ\n（ｍ）","最高の\n軒の高さ\n（ｍ）(補正値)","階数\n地上","階数\n地下","構造　（直接入力可）","構造\n一部　　（直接入力可）","特定構造計算基準又は特定増改築構造計算基準の別","構造計算の区分","名称　　（直接入力可）","Ver.","大臣認定の有無","大臣認定番号","建築基準法施行令第137条の2各号に定める基準","備考"]
[{"$f":"IF(ROW()-4=0, \"\", IF(ROW()-4<=20, CHAR(CODE(\"①\") +ROW()-5), \"(\" & (ROW()-4) & \")\"))","v":""},null,null,null,null,{"$f":"TRUNC(E4,2)","v":0},null,{"$f":"TRUNC(G4,3)","v":0},null,{"$f":"TRUNC(I4,3)","v":0},null,null,null,null,null,null,null,null,null,null,null,null,null,"← テンプレート行のため非表示"]
[{"$f":"IF(ROW()-4=0, \"\", IF(ROW()-4<=20, CHAR(CODE(\"①\") +ROW()-5), \"(\" & (ROW()-4) & \")\"))","v":"①"},null,null,null,null,{"$f":"TRUNC(E5,2)","v":0},null,{"$f":"TRUNC(G5,3)","v":0},null,{"$f":"TRUNC(I5,3)","v":0}]
[null,null,null,null,null,null,null,null,null,null,null,null,null,null,null,null,null,null,null,null,null,null,null,"← 読込範囲終了マーク行"]

{"sheet":"連絡票","index":5,"n_rows":56,"n_cols":33,"rows_kept":56,"cut":false,"hidden":false,"merged":[[53,0,53,21],[54,0,54,13],[54,14,54,21],[55,0,55,21],[47,0,47,21],[48,0,48,13],[48,14,48,21],[49,0,49,21],[50,0,50,21],[51,0,51,13],[51,14,51,21],[52,0,52,21],[3,17,3,18],[3,22,3,23],[3,27,3,28],[4,1,4,11],[4,12,4,32],[5,1,5,11],[5,12,5,32],[0,0,0,32],[1,12,1,13],[2,12,2,13],[1,22,1,23],[1,27,1,28],[3,1,3,11],[3,12,3,13],[1,0,5,0],[1,1,2,11],[2,22,2,23],[2,27,2,28],[11,9,11,11],[11,12,11,22],[11,23,11,27],[11,28,11,31],[12,12,12,22],[12,23,12,27],[12,28,12,31],[9,12,9,22],[9,23,9,27],[9,28,9,31],[10,9,10,11],[10,12,10,22],[10,23,10,27],[10,28,10,31],[9,9,9,11],[12,9,12,11],[13,9,13,10],[13,28,13,31],[15,0,20,0],[15,1,19,8],[15,9,15,11],[15,12,15,32],[16,9,16,11],[16,12,16,20],[16,21,16,23],[16,24,16,32],[7,0,13,0],[7,1,12,8],[7,9,7,11],[7,12,7,22],[7,23,7,27],[7,28,7,32],[8,9,8,11],[8,23,8,27],[8,28,8,31],[17,13,17,32],[18,9,18,11],[18,12,18,32],[19,9,19,11],[19,12,19,32],[27,0,32,0],[27,1,27,11],[27,12,27,32],[29,9,29,11],[29,12,29,32],[30,9,30,11],[21,1,21,32],[22,0,25,0],[22,1,25,8],[22,9,22,11],[22,12,22,32],[23,9,23,11],[23,12,23,20],[23,21,23,23],[23,24,23,32],[24,9,24,11],[30,12,30,20],[30,21,30,23],[30,24,30,32],[31,13,31,15],[31,16,31,32],[28,1,28,32],[29,1,30,8],[34,21,34,23],[34,24,34,32],[35,9,35,11],[35,12,35,20],[35,21,35,23],[20,1,20,8],[20,9,20,10],[20,17,20,18],[20,26,20,27],[31,1,31,2],[32,1,32,2],[31,3,31,8],[32,3,32,8],[32,12,32,20],[32,21,32,23],[32,24,32,32],[6,1,6,32],[8,12,8,22],[38,1,38,32],[40,0,43,0],[41,1,43,32],[35,24,35,32],[36,9,36,11],[36,12,36,20],[36,21,36,23],[36,24,36,32],[37,1,37,8],[37,9,37,10],[37,15,37,16],[37,21,37,22],[37,27,37,28],[32,9,32,11],[24,12,24,32],[25,9,25,11],[25,12,25,32],[33,1,33,32],[34,0,37,0],[34,1,36,8],[34,9,34,11],[34,12,34,20]]}
["一般財団法人ベターリビング構造計算適合性判定　連絡票\n1～7までをご記入のうえ、構造計算適合性判定申請書（第1～3面）に添えて提出してください"]
[1,"申込区分",null,null,null,null,null,null,null,null,null,null,"☐",null,"事前審査(希望する)",null,null,null,null,null,null,null,"□",null,"紙",null,null,"□",null,"データ"]
[null,null,null,null,null,null,null,null,null,null,null,null,"□",null,"本申請",null,null,null,null,null,null,null,"□",null,"紙",null,null,"□",null,"電子（注1-1）"]
[null,"申請の種類",null,null,null,null,null,null,null,null,null,null,"☐",null,"一般",null,null,"□",null,"計画通知",null,null,"□",null,"計画変更",null,null,"□",null,"任意"]
[null,"建築物の名称又は工事名",null,null,null,null,null,null,null,null,null,null,{"$f":"bukken_BUILD_NAME&\"\"","v":""}]
[null,"建設地（都道府県）",null,null,null,null,null,null,null,null,null,null,{"$f":"IF(COUNTIF(bukken_BUILD__address,\"*別紙*\")=1,IF(MID('第2面 別紙(敷地の位置)'!K4,4,1)=\"県\",LEFT('第2面 別紙(敷地の位置)'!K4,4),LEFT('第2面 別紙(敷地の位置)'!K4,3)),IF(MID(入力用!G75,4,1)=\"県\",LEFT(入力用!G75,4),LEFT(入力用!G75,3)))","v":""}]
[null,"注1-1）電子申請は「NICE構造適判WEB申請システム」をご利用ください。"]
[2,"判定対象建築物\n（申請書第3面に合わ\nせて記載）",null,null,null,null,null,null,null,"棟番号",null,null,"棟名称",null,null,null,null,null,null,null,null,null,null,"判定延面積(㎡)",null,null,null,null,"手数料(BL記入)"]
[null,null,null,null,null,null,null,null,null,{"$f":"INDIRECT(\"'入力用(第三面)'!B5\")&IF(INDIRECT(\"'入力用(第三面)'!C5\")<>\"\",IF(ISNUMBER(INDIRECT(\"'入力用(第三面)'!C5\"))=TRUE,\" - \"&INDIRECT(\"'入力用(第三面)'!C5\"),INDIRECT(\"'入力用(第三面)'!C5\")),\"\")","v":""},null,null,{"$f":"INDIRECT(\"'入力用(第三面)'!D5\")&\"\"","v":""},null,null,null,null,null,null,null,null,null,null,{"$f":"TEXT(INDIRECT(\"'入力用(第三面)'!F5\"),\"#,##0.00\")&\"\"","v":"0.00"},null,null,null,null,null,null,null,null,"円"]
[null,null,null,null,null,null,null,null,null,{"$f":"INDIRECT(\"'入力用(第三面)'!B6\")&IF(INDIRECT(\"'入力用(第三面)'!C6\")<>\"\",IF(ISNUMBER(INDIRECT(\"'入力用(第三面)'!C6\"))=TRUE,\" - \"&INDIRECT(\"'入力用(第三面)'!C6\"),INDIRECT(\"'入力用(第三面)'!C6\")),\"\")","v":""},null,null,{"$f":"INDIRECT(\"'入力用(第三面)'!D6\")&\"\"","v":""},null,null,null,null,null,null,null,null,null,null,{"$f":"IF(J14>1,TEXT(INDIRECT(\"'入力用(第三面)'!F6\"),\"#,##0.00\"),\"\")","v":""},null,null,null,null,null,null,null,null,"円"]
[null,null,null,null,null,null,null,null,null,{"$f":"INDIRECT(\"'入力用(第三面)'!B7\")&IF(INDIRECT(\"'入力用(第三面)'!C7\")<>\"\",IF(ISNUMBER(INDIRECT(\"'入力用(第三面)'!C7\"))=TRUE,\" - \"&INDIRECT(\"'入力用(第三面)'!C7\"),INDIRECT(\"'入力用(第三面)'!C7\")),\"\")","v":""},null,null,{"$f":"INDIRECT(\"'入力用(第三面)'!D7\")&\"\"","v":""},null,null,null,null,null,null,null,null,null,null,{"$f":"IF(J14>2,TEXT(INDIRECT(\"'入力用(第三面)'!F7\"),\"#,##0.00\"),\"\")","v":""},null,null,null,null,null,null,null,null,"円"]
[null,null,null,null,null,null,null,null,null,{"$f":"INDIRECT(\"'入力用(第三面)'!B8\")&IF(INDIRECT(\"'入力用(第三面)'!C8\")<>\"\",IF(ISNUMBER(INDIRECT(\"'入力用(第三面)'!C8\"))=TRUE,\" - \"&INDIRECT(\"'入力用(第三面)'!C8\"),INDIRECT(\"'入力用(第三面)'!C8\")),\"\")","v":""},null,null,{"$f":"INDIRECT(\"'入力用(第三面)'!D8\")&\"\"","v":""},null,null,null,null,null,null,null,null,null,null,{"$f":"IF(J14>3,TEXT(INDIRECT(\"'入力用(第三面)'!F8\"),\"#,##0.00\"),\"\")","v":""},null,null,null,null,null,null,null,null,"円"]
[null,null,null,null,null,null,null,null,null,{"$f":"INDIRECT(\"'入力用(第三面)'!B9\")&IF(INDIRECT(\"'入力用(第三面)'!C9\")<>\"\",IF(ISNUMBER(INDIRECT(\"'入力用(第三面)'!C9\"))=TRUE,\" - \"&INDIRECT(\"'入力用(第三面)'!C9\"),INDIRECT(\"'入力用(第三面)'!C9\")),\"\")","v":""},null,null,{"$f":"INDIRECT(\"'入力用(第三面)'!D9\")&\"\"","v":""},null,null,null,null,null,null,null,null,null,null,{"$f":"IF(J14>4,TEXT(INDIRECT(\"'入力用(第三面)'!F9\"),\"#,##0.00\"),\"\")","v":""},null,null,null,null,null,null,null,null,"円"]
[null,null,null,null,null,null,null,null,"合計棟数 ",{"$f":"'入力用(第三面)'!E1","v":1},null,"棟",null,null,null,null,null,null,null,null,null,null,null,null,null,null,null,"合計額 ",null,null,null,null,"円"]
[]
[3,"申請代理者連絡先\n（申請書第2面に記載\nする代理者）",null,null,null,null,null,null,null,"会社名",null,null,{"$f":"bukken_PROXY_ARCHITECT_ID__CORP_NAME&\"\"","v":""}]
[null,null,null,null,null,null,null,null,null,"部署名",null,null,null,null,null,null,null,null,null,null,null,"氏名",null,null,{"$f":"bukken_PROXY_ARCHITECT_ID__NAME&\"\"","v":""}]
[null,null,null,null,null,null,null,null,null,null,"住所",null,"〒",{"$f":"bukken_PROXY_ARCHITECT_ID__ZIP&\" \"&bukken_PROXY_ARCHITECT_ID___address&\"\"","v":" "}]
[null,null,null,null,null,null,null,null,null,"TEL",null,null,{"$f":"bukken_PROXY_ARCHITECT_ID__TEL&\"\"","v":""}]
[null,null,null,null,null,null,null,null,null,"E-mail",null,null,{"$f":"bukken_PROXY_ARCHITECT_ID__EMAIL&\"\"","v":""}]
[null,"適合通知･副本受取方法",null,null,null,null,null,null,null,"□",null,"代理者へ送付",null,null,null,null,null,"□",null,"確認申請先へ送付",null,null,null,null,null,null,"□",null,"窓口受取"]
[null,"注3-1)当機関から発行する通知書等は、代理者の方へ郵送します。\n注3-2)確認申請先へ副本の送付を希望する場合は、送付依頼書を提出してください。（紙提出の場合のみ）\n注3-3)電子申請の副本はNICE申請システムからダウンロードいただき、確認検査機関へご提出ください。"]
[4,"構造設計者連絡先\n（質疑の送信先）",null,null,null,null,null,null,null,"会社名",null,null,{"$f":"入力用!E108&\"\"","v":""}]
[null,null,null,null,null,null,null,null,null,"部署名",null,null,{"$f":"入力用!E109&\"\"","v":""},null,null,null,null,null,null,null,null,"氏名",null,null,{"$f":"入力用!N109&\"\"","v":""}]
[null,null,null,null,null,null,null,null,null,"TEL",null,null,{"$f":"入力用!E111&\"\"","v":""}]
[null,null,null,null,null,null,null,null,null,"E-mail",null,null,{"$f":"入力用!E112&\"\"","v":""}]
[]
[5,"手数料請求書の宛名\n（必須）"]
[null,"　NICE申請システムをご利用の際には、システムより電子請求書（PDF）を送付いたします。\n　NICE申請システム登録のアドレス以外に送付を希望する場合は「請求書受取方法・送付先」に記載ください。"]
[null,"請求書受取方法\n送付先",null,null,null,null,null,null,null,"会社名"]
[null,null,null,null,null,null,null,null,null,"部署名",null,null,null,null,null,null,null,null,null,null,null,"氏名"]
[null,"□",null,"電子メール送付",null,null,null,null,null,null,"住所",null,"〒"]
[null,"□",null,"書面送付",null,null,null,null,null,"TEL",null,null,null,null,null,null,null,null,null,null,null,"E-mail"]
[null,"注5-1)請求先等の変更による請求書の再発行は、ご遠慮ください。\n注5-2)領収証は、金融機関発行の振込明細に代えさせていただきます。\n　　　現金払いの場合を除き、領収証は発行いたしませんのでご了承ください。"]
[6,"確認申請先の\n構造審査担当者連絡先",null,null,null,null,null,null,null,"機関名",null,null,{"$f":"IF(入力用!F78=\"\",\"\",入力用!F78)&\"\"","v":""},null,null,null,null,null,null,null,null,"支店名"]
[null,null,null,null,null,null,null,null,null,"部署名",null,null,null,null,null,null,null,null,null,null,null,"氏名"]
[null,null,null,null,null,null,null,null,null,"TEL",null,null,null,null,null,null,null,null,null,null,null,"E-mail"]
[null,"確認審査等の状況",null,null,null,null,null,null,null,"□",null,"事前審査中",null,null,null,"□",null,"事前審査済",null,null,null,"□",null,"本申請済",null,null,null,"□",null,"適判待ち"]
[null,"注6-1)審査の進捗や質疑内容等について、確認申請先へ直接連絡させていただく場合がありますので\n　　　あらかじめご了承ください。"]
[]
[7,"連絡事項（申請スケジュール等をご記入ください）"]
[]
[]
[]
[]
["【お問い合わせ】"]
["一般財団法人ベターリビング 住宅・建築評価センター　",null,null,null,null,null,null,null,null,null,null,null,null,null,null,null,null,null,null,null,null,null,"CBL確認欄"]
["本部構造判定部（本部）"]
["E-mail：ｋｏｚｏｔｅｋｉｈａｎ＠ｃｂｌ.ｏｒ.ｊｐ",null,null,null,null,null,null,null,null,null,null,null,null,null,"TEL：03-5211-0738"]
["〒102-0071 東京都千代田区富士見2-7-2 ｽﾃｰｼﾞﾋﾞﾙﾃﾞｨﾝｸﾞ7F"]
["名古屋構造判定室（名古屋事務所）"]
["E-mail：ｋｏｚｏ-ｎａｇｏｙａ＠ｃｂｌ.ｏｒ.ｊｐ",null,null,null,null,null,null,null,null,null,null,null,null,null,"TEL：052-212-9056"]
["〒460-0008 愛知県名古屋市中区栄4-3-26 昭和ﾋﾞﾙ2F"]
["大阪構造判定室（大阪事務所）"]
["E-mail：ｋｏｚｏ-ｏｈｓａｋａ＠ｃｂｌ.ｏｒ.ｊｐ",null,null,null,null,null,null,null,null,null,null,null,null,null,"TEL：06-7176-3794"]
["〒541-0053 大阪府大阪市中央区本町2-6-8 ｾﾝﾊﾞ･ｾﾝﾄﾗﾙﾋﾞﾙ5F"]

{"sheet":"送付依頼書","index":6,"n_rows":40,"n_cols":20,"rows_kept":40,"cut":false,"hidden":false,"merged":[[25,1,25,7],[25,9,25,32],[2,0,2,33],[8,14,8,17],[9,14,9,17],[13,0,13,33],[15,10,16,32],[18,10,21,32],[23,1,23,7],[23,9,23,32],[24,1,24,7],[24,9,24,32],[8,19,9,32],[10,19,11,32],[35,1,35,2],[26,1,27,7],[26,10,26,14],[27,9,27,32],[28,1,28,7],[28,9,28,32],[29,1,29,7],[29,9,29,32],[31,0,31,33],[32,1,32,2],[33,1,33,2],[34,1,34,2],[34,3,34,32]]}
[]
[]
["送付依頼書"]
[]
[]
["一般財団法人　ベターリビング　御中"]
[]
[]
[null,null,null,null,null,null,null,null,null,null,null,null,null,null,"依頼者氏名",null,null,null,null,{"$f":"bukken_PROXY_ARCHITECT_ID__CORP_NAME&\"\"","v":""}]
[null,null,null,null,null,null,null,null,null,null,null,null,null,null,"(代 理 者)"]
[null,null,null,null,null,null,null,null,null,null,null,null,null,null,null,null,null,null,null,{"$f":"bukken_PROXY_ARCHITECT_ID__NAME&\"\"","v":""}]
[]
[]
["　下記の構造計算適合性判定について、適合性判定通知書（写し）及び判定申請図書（副本）を下記3.の送付先に送付を依頼します｡\n\n　　　　　　　　　　　　　　　　　　　　　　　記"]
[]
["1.建築物の名称又は工事名：",null,null,null,null,null,null,null,null,null,{"$f":"bukken_BUILD_NAME&\"\"","v":""}]
[]
[]
["2.敷地の位置（地名地番）：",null,null,null,null,null,null,null,null,null,{"$f":"IF(COUNTIF(bukken_BUILD__address,\"*別紙*\")=1,'第2面 別紙(敷地の位置)'!K4&\"\",入力用!G75&\"\")","v":""}]
[]
[]
[]
["3.送付先"]
[null,"建築主事又は\n確認検査機関名",null,null,null,null,null,null,null,{"$f":"連絡票!M35&\"\"","v":""}]
[null,"支店・事務所名",null,null,null,null,null,null,null,{"$f":"連絡票!Y35&\"\"","v":""}]
[null,"担当者名",null,null,null,null,null,null,null,{"$f":"連絡票!Y36&\"\"","v":""}]
[null,"住　　所",null,null,null,null,null,null,null,"〒"]
[]
[null,"電話番号",null,null,null,null,null,null,null,{"$f":"連絡票!M37&\"\"","v":""}]
[null,"E-mail",null,null,null,null,null,null,null,{"$f":"連絡票!Y37&\"\"","v":""}]
[]
["4.確認事項（本依頼書の提出にあたり、下記事項について了承のうえ、全ての項目にチェックを入れて\n             ください。チェックがない場合、依頼をお受けできません。）"]
[null,"☐",null,"送付先の建築主事又は確認検査機関等の了解を得ています。"]
[null,"□",null,"宅配業者等による図書の紛失、破損、遅延については、申請者にて対処します。"]
[null,"□",null,"本依頼書の提出後、本依頼によらず、申請者（建築主）又は申請代理者が適合判定通知書（原本）及び判定申請図書（副本）の受領を申し出た場合、本依頼は取下げます。"]
[null,"□",null,"直接送付について、申請者（建築主）様より委任されています。"]
[]
[null,"CBL受付日",null,null,null,null,null,null,null,"※処理欄"]
[null,null,null,null,null,null,null,null,null,null,"□","発送",null,"□","受取",null,"□","その他"]
[null,null,null,null,null,null,null,null,null,null,"　　　　年　　月　　日"]

{"sheet":"【旧】受付票","index":7,"n_rows":49,"n_cols":9,"rows_kept":49,"cut":false,"hidden":true,"merged":[[10,0,10,1],[10,3,10,8],[0,1,0,8],[1,1,1,8],[2,3,2,8],[3,0,3,1],[3,3,3,6],[20,3,20,4],[20,6,20,8],[11,3,11,4],[11,6,11,8],[12,3,12,8],[13,3,13,4],[13,6,13,8],[14,3,14,8],[17,0,17,1],[17,3,17,8],[18,3,18,4],[18,6,18,8],[19,3,19,8],[21,3,21,8],[22,2,22,5],[23,3,23,8],[24,0,25,1],[24,3,24,4],[25,3,25,4],[25,5,25,8],[26,3,26,4],[26,5,28,8],[27,3,27,4],[28,3,28,4],[30,0,30,1],[30,2,31,2],[30,3,30,8],[31,3,31,8],[40,6,48,7],[40,8,48,8],[32,0,32,1],[32,3,32,4],[32,6,32,8],[33,3,33,4],[33,6,33,8],[34,3,34,8],[35,3,35,8],[36,0,36,1],[36,2,36,8],[37,2,37,8],[39,6,39,7]]}
[null,"一般財団法人　ベターリビング"]
[null,"　構造計算適合性判定　受付票　（　事前審査　・　本受付　）"]
[null,null,"※","代理者の方が太枠内をご記入ください。\n事前審査申込時は、構造計算適合性判定申請書を添えて事前にメールでお送りください。\n本申請時は、確認申請書の写しも添えてご提出ください。"]
["建築物の概要",null,"建築物の\n名称",{"$f":"IF(入力用!F106=\"\",\"\",入力用!F106)","v":""},null,null,null,"建設地",{"$f":"IF(入力用!#REF!=\"\",\"\",IF(MID(入力用!#REF!,4,1)=\"県\",LEFT(入力用!#REF!,4),LEFT(入力用!#REF!,3)))","v":{"$error":"#REF!"}}]
[null,null,"棟番号","棟名称","設計ルート","認定\nプログラム","判定に係る\n面積 （㎡）","軒の高さ（m）","手数料（BL記入）"]
[null,null,{"$f":"IF(入力用!#REF!=\"\",\"\",入力用!#REF!)","v":{"$error":"#REF!"}},{"$f":"IF(入力用!#REF!=\"\",\"\",入力用!#REF!)","v":{"$error":"#REF!"}},{"$f":"IF(入力用!#REF!=\"\",\"\",入力用!#REF!)","v":{"$error":"#REF!"}},{"$f":"IF(入力用!#REF!=\"\",\"\",入力用!#REF!)","v":{"$error":"#REF!"}},{"$f":"IF(入力用!#REF!=\"\",\"\",入力用!#REF!)","v":{"$error":"#REF!"}},{"$f":"IF(入力用!#REF!=\"\",\"\",入力用!#REF!)","v":{"$error":"#REF!"}},0]
[null,null,{"$f":"IF(入力用!#REF!=\"\",\"\",入力用!#REF!)","v":{"$error":"#REF!"}},{"$f":"IF(入力用!#REF!=\"\",\"\",入力用!#REF!)","v":{"$error":"#REF!"}},{"$f":"IF(入力用!#REF!=\"\",\"\",入力用!#REF!)","v":{"$error":"#REF!"}},{"$f":"IF(入力用!#REF!=\"\",\"\",入力用!#REF!)","v":{"$error":"#REF!"}},{"$f":"IF(入力用!#REF!=\"\",\"\",入力用!#REF!)","v":{"$error":"#REF!"}},{"$f":"IF(入力用!#REF!=\"\",\"\",入力用!#REF!)","v":{"$error":"#REF!"}},0]
[null,"引受条件確認",{"$f":"IF(入力用!#REF!=\"\",\"\",入力用!#REF!)","v":{"$error":"#REF!"}},{"$f":"IF(入力用!#REF!=\"\",\"\",入力用!#REF!)","v":{"$error":"#REF!"}},{"$f":"IF(入力用!#REF!=\"\",\"\",入力用!#REF!)","v":{"$error":"#REF!"}},{"$f":"IF(入力用!#REF!=\"\",\"\",入力用!#REF!)","v":{"$error":"#REF!"}},{"$f":"IF(入力用!#REF!=\"\",\"\",入力用!#REF!)","v":{"$error":"#REF!"}},{"$f":"IF(入力用!#REF!=\"\",\"\",入力用!#REF!)","v":{"$error":"#REF!"}},0]
[null,null,"適判申請棟数",{"$f":"IF(入力用!F107=\"\",\"\",入力用!F107)","v":1},null,null,null,"手数料合計"]
[]
["代理者",null,"会社名",{"$f":"IF(入力用!#REF!=\"\",\"\",入力用!#REF!)","v":{"$error":"#REF!"}}]
[null,null,"部署名",{"$f":"IF(入力用!#REF!=\"\",\"\",入力用!#REF!)","v":{"$error":"#REF!"}},null,"氏名",{"$f":"IF(入力用!#REF!=\"\",\"\",入力用!#REF!)","v":{"$error":"#REF!"}}]
[null,null,"住所",{"$f":"\"〒\"&IF(入力用!#REF!=\"\",\"\",入力用!#REF!)&\"　\"&IF(入力用!#REF!=\"\",\"\",入力用!#REF!)","v":{"$error":"#REF!"}}]
[null,null,"TEL",{"$f":"IF(入力用!#REF!=\"\",\"\",入力用!#REF!)","v":{"$error":"#REF!"}},null,"FAX",{"$f":"IF(入力用!#REF!=\"\",\"\",入力用!#REF!)","v":{"$error":"#REF!"}}]
[null,null,"mail",{"$f":"IF(入力用!#REF!=\"\",\"\",入力用!#REF!)","v":{"$error":"#REF!"}}]
[null,null,"適合判定通知書・副本の引取方法",null,null,{"$f":"入力用!#REF!&\"代理者へ送付　　　　　\"&入力用!#REF!&\"確認申請先へ送付　　　　\"&入力用!#REF!&\"直接受取\"","v":{"$error":"#REF!"}}]
[]
["構造設計担当者",null,"会社名",{"$f":"IF(入力用!E108=\"\",\"\",入力用!E108)","v":""}]
[null,null,"部署名",{"$f":"IF(入力用!E109=\"\",\"\",入力用!E109)","v":""},null,"氏名",{"$f":"IF(入力用!N109=\"\",\"\",入力用!N109)","v":""}]
[null,null,"住所",{"$f":"\"〒\"&IF(入力用!E110=\"\",\"\",入力用!E110)&\"　\"&IF(入力用!I110=\"\",\"\",入力用!I110)","v":"〒　住所"}]
[null,null,"TEL",{"$f":"IF(入力用!E111=\"\",\"\",入力用!E111)","v":""},null,"FAX",{"$f":"IF(入力用!N111=\"\",\"\",入力用!N111)","v":""}]
[null,null,"mail",{"$f":"IF(入力用!E112=\"\",\"\",入力用!E112)","v":""}]
[null,null,"構造設計担当者の方へメールで指摘事項等の同時連絡を希望",null,null,null,{"$f":"IF(入力用!P113=\"☑\",\"☑\",\"□\")&\"  する\"","v":"□  する"}]
[null,null,"注意事項\n\n","・棟番号は、適判申請書第三面１欄に記載された番号を記入してください。\n・代理者欄は、申請書第二面２欄に記載された代理者を記入してください。\n・当機関から発行する通知書等は、代理者の方へ送付します。\n・適合判定通知書 ・ 副本を直接受取る場合は、代理者の方が印鑑を持参のうえ、ご来社ください。\n・確認申請先へ送付を希望の場合は、確認申請先の承諾を得てください。"]
["確認申請先\n（構造審査担当者）",null,"機関等名",{"$f":"IF(入力用!E114=\"\",\"\",入力用!E114)","v":""},null,"事前審査",{"$f":"IF(入力用!E117=\"☑\",\"☑\",\"□\")&\" 済\"","v":"□ 済"},{"$f":"IF(入力用!H117=\"☑\",\"☑\",\"□\")&\" 実施中\"","v":"□ 実施中"},{"$f":"IF(入力用!L117=\"☑\",\"☑\",\"□\")&\" 未実施\"","v":"□ 未実施"}]
[null,null,"支店・部署名",{"$f":"IF(入力用!E115=\"\",\"\",入力用!E115)","v":""},null,"○確認審査状況等"]
[null,null,"担当者名",{"$f":"IF(入力用!N115=\"\",\"\",入力用!N115)","v":""},null,{"$f":"IF(入力用!G118=\"\",\"\",入力用!G118)","v":""}]
[null,"引受条件確認","TEL",{"$f":"IF(入力用!E116=\"\",\"\",入力用!E116)","v":""}]
[null,null,"mail",{"$f":"IF(入力用!N116=\"\",\"\",入力用!N116)","v":""}]
[]
[null,null,"請求書宛名\n（会社名等）",{"$f":"IF(入力用!F119=\"\",\"\",入力用!F119)","v":""}]
[null,null,null,{"$f":"IF(入力用!F120=\"\",\"\",入力用!F120)","v":""}]
["請求書送付先",null,"会社名",{"$f":"IF(入力用!E121=\"\",\"\",入力用!E121)","v":""},null,"部署名",{"$f":"IF(入力用!N121=\"\",\"\",入力用!N121)","v":""}]
[null,null,"氏名",{"$f":"IF(入力用!E122=\"\",\"\",入力用!E122)","v":""},null,"TEL",{"$f":"IF(入力用!N122=\"\",\"\",入力用!N122)","v":""}]
[null,null,"住所",{"$f":"\"〒\"&IF(入力用!E123=\"\",\"\",入力用!E123)&\"　\"&IF(入力用!I123=\"\",\"\",入力用!I123)","v":"〒　"}]
[null,null,"注意事項","・請求先等の変更による請求書の再発行はご遠慮ください。\n・領収証は、金融機関発行の振込明細に代えさせていただきます。ベターリビングでは現金払いの場合\n　を除き領収証の発行はいたしませんのでご了承ください。"]
["備考",null,"○本申請予定日などご記載ください"]
[null,null,{"$f":"IF(入力用!E124=\"\",\"\",入力用!E124)","v":""}]
[]
["　　【お問合せ・送付先】",null,null,null,null,null,"受付",null,"確認"]
["　　一般財団法人ベターリビング　住宅・建築評価センター　"]
[null,"本部　構造判定部"]
[null,"　　E-mail ： ｋｏｚｏｔｅｋｉｈａｎ＠ｃｂｌ.ｏｒ.ｊｐ"]
[null,"　　TEL ： 03-5211-0738　　　FAX ： 03-5211-0627"]
[null,"　　〒102-0071　東京都千代田区富士見2-7-2　ステージビルディング７F"]
[null,"名古屋構造判定分室"]
[null,"　　E-mail ： ｋｏｚｏ-nagoya＠ｃｂｌ.ｏｒ.ｊｐ"]
[null,"　　TEL ： 052-212-9056　　　FAX ： 052-212-9057"]
[null,"　　〒460-0008　愛知県名古屋市中区栄4-3-26　昭和ビル2F"]

{"sheet":"委任状","index":8,"n_rows":48,"n_cols":31,"rows_kept":48,"cut":false,"hidden":false,"merged":[[22,13,31,33],[33,13,36,33],[43,9,45,33],[47,9,49,33],[39,23,39,31],[16,9,17,33],[19,0,19,33],[15,9,15,33],[5,0,5,33],[13,10,13,11],[13,17,13,20],[13,26,13,29],[14,9,14,33]]}
[]
[]
[]
[]
[]
["委　任　状"]
[]
[]
[]
[]
[]
["【代　理　者】"]
[]
[null,"【資　　　　　格】",null,null,null,null,null,null,null,"（",{"$f":"入力用!D25&\"\"","v":""},null,"）","建築士",null,null,"（",{"$f":"入力用!J25&\"\"","v":""},null,null,null,"）","登録",null,null,"第",{"$f":"入力用!R25&\"\"","v":""},null,null,null,"号"]
[null,"【氏　　　　　名】",null,null,null,null,null,null,null,{"$f":"入力用!F27&\"\"","v":""}]
[null,"【建築士事務所名】",null,null,null,null,null,null,null,{"$f":"入力用!F30&\"\"","v":""}]
[null,"【所　　在　　地】",null,null,null,null,null,null,null,{"$f":"入力用!L31&\"\"","v":""}]
[]
[]
["　上記の者を代理者と定め、下記の建築物について構造計算適合性判定（計画変更を含む）に関する手続きの一切を委任します。"]
[]
[]
[null,"【１.敷地の位置（地名地番）】",null,null,null,null,null,null,null,null,null,null,null,{"$f":"IF(COUNTIF(bukken_BUILD__address,\"*別紙*\")=1,'第2面 別紙(敷地の位置)'!K4&\"\",bukken_BUILD__address&\"\")","v":""}]
[]
[]
[]
[]
[]
[]
[]
[]
[]
[]
[null,"【２.建築物の名称又は工事名】",null,null,null,null,null,null,null,null,null,null,null,{"$f":"bukken_BUILD_NAME&\"\"","v":""}]
[]
[]
[]
[]
[]
[null,null,null,null,null,null,null,null,null,null,null,null,null,null,null,null,null,null,null,null,null,null,null,{"$f":"IF(入力用!D127=\"\",\"　　年　　　月　　　日\",入力用!D127)","v":"　　年　　　月　　　日"}]
[]
["【委　任　者】"]
[]
[null,"【氏　　　　　名】",null,null,null,null,null,null,null,{"$f":"IF(入力用!F20=\"\",\"\",入力用!F20&CHAR(10))&入力用!F22","v":""}]
[]
[]
[]
[null,"【住　　　　　所】",null,null,null,null,null,null,null,{"$f":"入力用!L23&\"\"","v":""}]

{"sheet":"委任状 (2人目)","index":9,"n_rows":48,"n_cols":31,"rows_kept":48,"cut":false,"hidden":false,"merged":[[47,9,49,33],[16,9,17,33],[19,0,19,33],[22,13,31,33],[33,13,36,33],[39,23,39,31],[43,9,45,33],[15,9,15,33],[5,0,5,33],[13,10,13,11],[13,17,13,20],[13,26,13,29],[14,9,14,33]]}
[]
[]
[]
[]
[]
["委　任　状"]
[]
[]
[]
[]
[]
["【代　理　者】"]
[]
[null,"【資　　　　　格】",null,null,null,null,null,null,null,"（",{"$f":"入力用!D25&\"\"","v":""},null,"）","建築士",null,null,"（",{"$f":"入力用!J25&\"\"","v":""},null,null,null,"）","登録",null,null,"第",{"$f":"入力用!R25&\"\"","v":""},null,null,null,"号"]
[null,"【氏　　　　　名】",null,null,null,null,null,null,null,{"$f":"入力用!F27&\"\"","v":""}]
[null,"【建築士事務所名】",null,null,null,null,null,null,null,{"$f":"入力用!F30&\"\"","v":""}]
[null,"【所　　在　　地】",null,null,null,null,null,null,null,{"$f":"入力用!L31&\"\"","v":""}]
[]
[]
["　上記の者を代理者と定め、下記の建築物について構造計算適合性判定（計画変更を含む）に関する手続きの一切を委任します。"]
[]
[]
[null,"【１.敷地の位置（地名地番）】",null,null,null,null,null,null,null,null,null,null,null,{"$f":"IF(COUNTIF(bukken_BUILD__address,\"*別紙*\")=1,'第2面 別紙(敷地の位置)'!K4&\"\",bukken_BUILD__address&\"\")","v":""}]
[]
[]
[]
[]
[]
[]
[]
[]
[]
[]
[null,"【２.建築物の名称又は工事名】",null,null,null,null,null,null,null,null,null,null,null,{"$f":"bukken_BUILD_NAME&\"\"","v":""}]
[]
[]
[]
[]
[]
[null,null,null,null,null,null,null,null,null,null,null,null,null,null,null,null,null,null,null,null,null,null,null,{"$f":"IF(入力用!D127=\"\",\"　　年　　　月　　　日\",入力用!D127)","v":"　　年　　　月　　　日"}]
[]
["【委　任　者】"]
[]
[null,"【氏　　　　　名】",null,null,null,null,null,null,null,{"$f":"IF(入力用!BE20=\"\",\"\",入力用!BE20&CHAR(10))&入力用!BE22","v":""}]
[]
[]
[]
[null,"【住　　　　　所】",null,null,null,null,null,null,null,{"$f":"入力用!BK23&\"\"","v":""}]

{"sheet":"【第一面】","index":10,"n_rows":47,"n_cols":57,"rows_kept":47,"cut":false,"hidden":false,"merged":[[33,14,36,33],[16,22,16,32],[3,0,3,33],[17,24,17,32],[32,14,32,33],[30,14,30,22],[4,0,4,33],[5,0,5,33],[9,0,9,33],[19,18,21,32],[24,18,26,32],[19,33,21,33],[24,33,26,33],[31,14,31,15],[31,17,31,18],[31,20,31,21]]}
[{"$f":"VLOOKUP(入力用!F2,AJ1:AW7,2,FALSE)","v":"第十八号の二様式（第三条の七、第三条の十関係）（Ａ４）"},null,null,null,null,null,null,null,null,null,null,null,null,null,null,null,null,null,null,null,null,null,null,null,null,null,null,null,null,null,null,null,null,null,null,null,"様式","3行目","題目","文言","【計変】",null,null,null,null,"注意1","注意2","注意3","申請者氏名","通知書番号欄","番号頭","係員氏名・印"]
[null,null,null,null,null,null,null,null,null,null,null,null,null,null,null,null,null,null,null,null,null,null,null,null,null,null,null,null,null,null,null,null,null,null,null,"申請書","第十八号の二様式（第三条の七、第三条の十関係）（Ａ４）"," ","構造計算適合性判定申請書",{"$f":"\"　建築基準法第６条の３第１項（同法第１８条の２第４項の規定により読み替えて適用される場合を含む。）の規定による構造計算適合性判定を申請します。この申請書及び添付図書に記載の事項は、事実に相違ありません。申請にあたっては、\"&SUBSTITUTE(BD2,\"　\",\"\")&\"の構造計算適合性判定業務約款を遵守します。\"","v":"　建築基準法第６条の３第１項（同法第１８条の２第４項の規定により読み替えて適用される場合を含む。）の規定による構造計算適合性判定を申請します。この申請書及び添付図書に記載の事項は、事実に相違ありません。申請にあたっては、一般財団法人ベターリビングの構造計算適合性判定業務約款を遵守します。"},null,null,null,null,null,null,null,null,"申請者氏名"," ※適合判定通知書番号欄","  第CBL-CC-　　　　　　　　　号","  係員氏名",null,null,"機関名","一般財団法人ベターリビング"]
[null,null,null,null,null,null,null,null,null,null,null,null,null,null,null,null,null,null,null,null,null,null,null,null,null,null,null,null,null,null,null,null,null,null,null,"計画変更","第十八号の三様式（第三条の七、第三条の十関係）（Ａ４）"," ","計画変更構造計算適合性判定申請書",{"$f":"\"　建築基準法第６条の３第１項（同法第18条の２第４項の規定により読み替えて適用される場合を含む。）の規定による計画の変更の構造計算適合性判定を申請します。この申請書及び添付図書に記載の事項は、事実に相違ありません。申請にあたっては、\"&SUBSTITUTE(BD2,\"　\",\"\")&\"の構造計算適合性判定業務約款を遵守します。\"","v":"　建築基準法第６条の３第１項（同法第18条の２第４項の規定により読み替えて適用される場合を含む。）の規定による計画の変更の構造計算適合性判定を申請します。この申請書及び添付図書に記載の事項は、事実に相違ありません。申請にあたっては、一般財団法人ベターリビングの構造計算適合性判定業務約款を遵守します。"},"【計画を変更する建築物の直前の構造計算適合性判定】","【適合判定通知書番号】","【適合判定通知書交付年月日】","【適合判定通知書交付者】","【計画変更の概要】","①　数字は算用数字を用いてください。","②　※印のある欄は記入しないでください。",null,"申請者氏名"," ※適合判定通知書番号欄","  第CBL-CC-　　　　　　　　　号","  係員氏名",null,null,"代表者名","理事長　　眞 鍋　　純  様"]
[{"$f":"VLOOKUP(入力用!F2,AJ1:AW7,3,FALSE)","v":" "},null,null,null,null,null,null,null,null,null,null,null,null,null,null,null,null,null,null,null,null,null,null,null,null,null,null,null,null,null,null,null,null,null,null,"計画通知","第四十二号の十二の二様式（第八条の二の二及び第八条の二の三関係）（Ａ４）","建築基準法第１８条第５項の規定による","計画通知書",{"$f":"\"　建築基準法第18条第５項（同法第18条の２第４項の規定により読み替えて適用される場合を含む。）の規定により計画を通知します。通知にあたっては、\"&SUBSTITUTE(BD2,\"　\",\"\")&\"の構造計算適合性判定業務約款を遵守します。\"","v":"　建築基準法第18条第５項（同法第18条の２第４項の規定により読み替えて適用される場合を含む。）の規定により計画を通知します。通知にあたっては、一般財団法人ベターリビングの構造計算適合性判定業務約款を遵守します。"},null,null,null,null,null,"１．第２面及び第３面として別記第18号の２様式の第２面及び第３面に記載すべき事項を記載"," 　 した書類を添えてください。","２．別記第１８号の２様式の（注意）に準じて記入してください。","通知者官職"," ※適合判定通知書番号欄","  第CBL-CC-　　　　　　　　　号","  係員氏名"]
[{"$f":"VLOOKUP(入力用!F2,AJ1:AW7,4,FALSE)","v":"構造計算適合性判定申請書"},null,null,null,null,null,null,null,null,null,null,null,null,null,null,null,null,null,null,null,null,null,null,null,null,null,null,null,null,null,null,null,null,null,null,"計画変更計画通知","第四十二号の十二の三様式（第八条の二の二及び第八条の二の三関係）（Ａ４）","建築基準法第１８条第５項の規定による","計画変更通知書",{"$f":"\"　建築基準法第18条第５項（同法第18条の２第４項の規定により読み替えて適用される場合を含む。）の規定により計画の変更を通知します。通知にあたっては、\"&SUBSTITUTE(BD2,\"　\",\"\")&\"の構造計算適合性判定業務約款を遵守します。\"","v":"　建築基準法第18条第５項（同法第18条の２第４項の規定により読み替えて適用される場合を含む。）の規定により計画の変更を通知します。通知にあたっては、一般財団法人ベターリビングの構造計算適合性判定業務約款を遵守します。"},"【計画を変更する建築物の直前の構造計算適合性判定】","【適合判定通知書番号】","【適合判定通知書交付年月日】","【適合判定通知書交付者】","【計画変更の概要】","　別記第18号の３様式の（注意）に準じて記入してください。",null,null,"通知者官職"," ※適合判定通知書番号欄","  第CBL-CC-　　　　　　　　　号","  係員氏名"]
["（第一面）",null,null,null,null,null,null,null,null,null,null,null,null,null,null,null,null,null,null,null,null,null,null,null,null,null,null,null,null,null,null,null,null,null,null,"任意","ＢＬ-任意（Ａ４）"," ","構造計算適合性判定（任意）申請書",{"$f":"\"　構造計算適合性判定（任意）を申請します。この申請書及び添付図書に記載の事項は、事実に相違ありません。申請にあたっては、\"&SUBSTITUTE(BD2,\"　\",\"\")&\"の構造計算適合性判定（任意）業務約款を遵守します。\"","v":"　構造計算適合性判定（任意）を申請します。この申請書及び添付図書に記載の事項は、事実に相違ありません。申請にあたっては、一般財団法人ベターリビングの構造計算適合性判定（任意）業務約款を遵守します。"},null,null,null,null,null,null,null,null,"申請者氏名"," ※適合判定(任意)通知書番号欄","  第CBL-CR-　　　　　　　　　号","  係員氏名"]
[null,null,null,null,null,null,null,null,null,null,null,null,null,null,null,null,null,null,null,null,null,null,null,null,null,null,null,null,null,null,null,null,null,null,null,"計画変更任意","ＢＬ-任意（Ａ４）"," ","計画変更構造計算適合性判定（任意）申請書",{"$f":"\"　計画変更構造計算適合性判定（任意）を申請します。この申請書及び添付図書に記載の事項は、事実に相違ありません。申請にあたっては、\"&SUBSTITUTE(BD2,\"　\",\"\")&\"の構造計算適合性判定（任意）業務約款を遵守します。\"","v":"　計画変更構造計算適合性判定（任意）を申請します。この申請書及び添付図書に記載の事項は、事実に相違ありません。申請にあたっては、一般財団法人ベターリビングの構造計算適合性判定（任意）業務約款を遵守します。"},"【計画を変更する建築物の直前の構造計算適合性判定(任意)】","【適合判定(任意)通知書番号】","【適合判定(任意)通知書交付年月日】","【適合判定(任意)通知書交付者】","【計画変更の概要】",null,null,null,"申請者氏名"," ※適合判定(任意)通知書番号欄","  第CBL-CR-　　　　　　　　　号","  係員氏名"]
[]
[]
[{"$f":"VLOOKUP(入力用!F2,AJ1:AW7,5,FALSE)","v":"　建築基準法第６条の３第１項（同法第１８条の２第４項の規定により読み替えて適用される場合を含む。）の規定による構造計算適合性判定を申請します。この申請書及び添付図書に記載の事項は、事実に相違ありません。申請にあたっては、一般財団法人ベターリビングの構造計算適合性判定業務約款を遵守します。"}]
[]
[]
[]
[{"$f":"BD2","v":"一般財団法人ベターリビング"},null,null,null,null,null,null,null,null,null,null,null,null,null,null,null,null,null,null,null,null,null,null,null,null,null,null,null,null,null,null,null,null,null,null,null,null,null,null,null,null,null,null,null,null,null,null,null,null,null,null,null,null,null,null,null,{"$f":"IF(AND($A$30<>\"\",入力用!AA12<>\"//\"),IF(入力用!AA12=\"\",\"\",入力用!AA12),\"\")","v":""}]
[{"$f":"BD3","v":"理事長　　眞 鍋　　純  様"}]
[]
[null,null,null,null,null,null,null,null,null,null,null,null,null,null,null,null,null,null,null,null,null,null,{"$f":"IF(OR(入力用!F2=\"計画通知\",入力用!F2=\"計画変更計画通知\"),IF(入力用!P4=\"\",\"第　　　　　　　　　号\",\"第　\"&入力用!P4&\"　号\"),\"\")","v":""}]
[null,null,null,null,null,null,null,null,null,null,null,null,null,null,null,null,null,null,null,null,null,null,null,null,{"$f":"IF(入力用!E4=\"\",\"     年     月     日\",入力用!E4)","v":"     年     月     日"}]
[]
[null,null,null,null,null,null,null,null,null,null,null,null,null,null,null,null,null,null,{"$f":"IF(入力用!J6=\"\",\"\",IF(入力用!J5=\"\",\"\",入力用!J5&CHAR(10))&入力用!J6)","v":""}]
[null,null,null,null,null,null,null,null,null,null,null,null,null,{"$f":"VLOOKUP(入力用!F2,AJ1:AW7,14,FALSE)","v":"申請者氏名"}]
[]
[]
[]
[null,null,null,null,null,null,null,null,null,null,null,null,null,null,null,null,null,null,{"$f":"IF(入力用!J9=\"\",\"\",IF(入力用!J8=\"\",\"\",入力用!J8&CHAR(10))&入力用!J9)","v":""}]
[null,null,null,null,null,null,null,null,null,null,null,null,null,"設計者氏名"]
[]
[]
[]
[{"$f":"VLOOKUP(入力用!F2,AJ1:AW7,6,FALSE)&\"\"","v":""}]
[{"$f":"VLOOKUP(入力用!F2,AJ1:AW7,7,FALSE)&\"\"","v":""},null,null,null,null,null,null,null,null,null,null,null,null,null,{"$f":"IF($A$30<>\"\",IF(入力用!K11=\"\",\"\",\"第\"&入力用!K11&\"号\"),\"\")","v":""}]
[{"$f":"VLOOKUP(入力用!F2,AJ1:AW7,8,FALSE)&\"\"","v":""},null,null,null,null,null,null,null,null,null,null,null,null,null,{"$f":"IF($A$30<>\"\",IF(入力用!L12=\"\",\"\",入力用!L12),\"\")","v":""},null,{"$f":"入力用!O12","v":""},{"$f":"IF($A$30<>\"\",IF(入力用!P12=\"\",\"\",入力用!P12),\"\")","v":""},null,{"$f":"入力用!R12","v":""},{"$f":"IF($A$30<>\"\",IF(入力用!S12=\"\",\"\",入力用!S12),\"\")","v":""},null,{"$f":"入力用!U12","v":""}]
[{"$f":"VLOOKUP(入力用!F2,AJ1:AW7,9,FALSE)&\"\"","v":""},null,null,null,null,null,null,null,null,null,null,null,null,null,{"$f":"IF($A$30<>\"\",IF(入力用!J13=\"\",\"\",入力用!J13),\"\")","v":""}]
[{"$f":"VLOOKUP(入力用!F2,AJ1:AW7,10,FALSE)&\"\"","v":""},null,null,null,null,null,null,null,null,null,null,null,null,null,{"$f":"IF($A$30<>\"\",IF(入力用!J15=\"\",\"\",入力用!J15),\"\")","v":""}]
[]
[]
[]
[" ※手数料欄"]
[" ※受付欄",null,null,null,null,null,null,null,null,null,null,null,null," ※決裁欄",null,null,null,null,null,null,null,{"$f":"VLOOKUP(入力用!F2,AJ1:AZ7,15,FALSE)&\"\"","v":" ※適合判定通知書番号欄"}]
["　       　年    　 月     　日",null,null,null,null,null,null,null,null,null,null,null,null,null,null,null,null,null,null,null,null,"　       　年    　 月     　日"]
[{"$f":"VLOOKUP(入力用!F2,AJ1:AZ7,16,FALSE)&\"\"","v":"  第CBL-CC-　　　　　　　　　号"},null,null,null,null,null,null,null,null,null,null,null,null,null,null,null,null,null,null,null,null,{"$f":"VLOOKUP(入力用!F2,AJ1:AZ7,16,FALSE)&\"\"","v":"  第CBL-CC-　　　　　　　　　号"}]
[{"$f":"VLOOKUP(入力用!F2,AJ1:AZ7,17,FALSE)&\"\"","v":"  係員氏名"},null,null,null,null,null,null,null,null,null,null,null,null,null,null,null,null,null,null,null,null,{"$f":"VLOOKUP(入力用!F2,AJ1:AZ7,17,FALSE)&\"\"","v":"  係員氏名"}]
[]
[{"$f":"IF(A45=\"\",\"\",\"（注意）\")","v":""}]
[{"$f":"VLOOKUP(入力用!F2,AJ1:AZ7,11,FALSE)&\"\"","v":""}]
[{"$f":"VLOOKUP(入力用!F2,AJ1:AZ7,12,FALSE)&\"\"","v":""}]
[{"$f":"VLOOKUP(入力用!F2,AJ1:AZ7,13,FALSE)&\"\"","v":""}]

{"sheet":"【第二面】","index":11,"n_rows":83,"n_cols":34,"rows_kept":83,"cut":false,"hidden":false,"merged":[[70,1,70,2],[70,11,70,23],[70,25,70,32],[71,1,71,2],[71,11,71,23],[71,25,71,32],[78,4,79,33],[82,4,86,33],[10,10,10,33],[19,10,19,33],[29,10,29,33],[38,10,38,33],[47,10,47,33],[67,10,68,33],[58,10,58,33],[59,22,59,25],[43,10,43,33],[44,13,44,33],[46,10,46,11],[46,19,46,22],[46,28,46,31],[48,10,48,11],[61,10,61,33],[62,22,62,25],[65,10,66,33],[49,10,49,33],[50,10,50,14],[51,10,51,33],[52,10,52,33],[53,13,53,33],[57,1,57,2],[50,1,50,8],[51,1,51,8],[52,1,52,8],[53,1,53,12],[48,19,48,21],[48,28,48,31],[39,10,39,11],[39,19,39,21],[39,28,39,31],[40,10,40,33],[41,10,41,14],[42,10,42,33],[60,1,60,2],[43,1,43,8],[44,1,44,12],[46,1,46,8],[47,1,47,8],[48,1,48,8],[37,19,37,22],[37,28,37,31],[24,10,24,33],[25,13,25,33],[28,10,28,11],[28,19,28,22],[28,28,28,31],[30,10,30,11],[30,19,30,21],[30,28,30,31],[31,10,31,33],[32,10,32,14],[33,10,33,33],[34,10,34,33],[35,13,35,33],[14,10,14,33],[15,10,15,33],[18,10,18,11],[18,19,18,22],[18,28,18,31],[20,10,20,11],[20,19,20,21],[20,28,20,31],[21,10,21,33],[9,1,9,8],[10,1,10,8],[11,1,11,8],[13,1,13,8],[14,1,14,8],[7,10,7,33],[0,0,0,33],[2,10,2,33],[3,10,4,33],[5,10,5,14],[6,10,6,33],[2,1,2,8],[3,1,3,8],[5,1,5,8],[6,1,6,8],[7,1,7,8],[9,10,9,11],[9,19,9,22],[9,28,9,31],[11,10,11,11],[11,19,11,21],[11,28,11,31],[12,10,12,33],[13,10,13,14],[23,1,23,8],[24,1,24,8],[25,1,25,12],[28,1,28,8],[29,1,29,8],[15,1,15,8],[18,1,18,8],[19,1,19,8],[20,1,20,8],[22,1,22,8],[23,10,23,33],[22,10,22,14],[37,1,37,8],[38,1,38,8],[39,1,39,8],[41,1,41,8],[42,1,42,8],[37,10,37,11],[30,1,30,8],[32,1,32,8],[33,1,33,8],[34,1,34,8],[35,1,35,12]]}
["（第二面）"]
["【1.建築主】"]
[null,"【イ.氏名のフリガナ】",null,null,null,null,null,null,null,null,{"$f":"入力用!F19&\"　\"&入力用!F21","v":"　"}]
[null,"【ロ.氏　　　　　名】",null,null,null,null,null,null,null,null,{"$f":"IF(入力用!F20=\"\",\"\",入力用!F20)&IF(入力用!F22=\"\",\"\",IF(入力用!F20=\"\",入力用!F22,CHAR(10)&入力用!F22))","v":""}]
[]
[null,"【ハ.郵　便　番　号】",null,null,null,null,null,null,null,"〒",{"$f":"IF(入力用!F23=\"\",\"\",入力用!F23)","v":""}]
[null,"【ニ.住　　　　　所】",null,null,null,null,null,null,null,null,{"$f":"IF(入力用!L23=\"\",\"\",入力用!L23)","v":""}]
[null,"【ホ.電　話　番　号】",null,null,null,null,null,null,null,null,{"$f":"IF(入力用!F24=\"\",\"\",入力用!F24)","v":""}]
["【2.代理者】"]
[null,"【イ.資　　　　　格】",null,null,null,null,null,null,null,"（",{"$f":"bukken_PROXY_ARCHITECT_ID__LICENSE_ID&\"\"","v":""},null,"）","建築士",null,null,null,null,"（",{"$f":"bukken_PROXY_ARCHITECT_ID__LICENSE_REGIST_ID&\"\"","v":""},null,null,null,"）","登録",null,null,"第",{"$f":"bukken_PROXY_ARCHITECT_ID__LICENSE_NO&\"\"","v":""},null,null,null,"号"]
[null,"【ロ.氏　　　　　名】",null,null,null,null,null,null,null,null,{"$f":"bukken_PROXY_ARCHITECT_ID__NAME&\"\"","v":""}]
[null,"【ハ.建築士事務所名】",null,null,null,null,null,null,null,"（",{"$f":"bukken_PROXY_ARCHITECT_ID__CORP_LICENSE_ID&\"\"","v":""},null,"）","建築士事務所",null,null,null,null,"（",{"$f":"bukken_PROXY_ARCHITECT_ID__CORP_LICENSE_REGIST_ID&\"\"","v":""},null,null,"）","知事登録",null,null,null,"第",{"$f":"bukken_PROXY_ARCHITECT_ID__CORP_LICENSE_NO&\"\"","v":""},null,null,null,"号"]
[null,null,null,null,null,null,null,null,null,null,{"$f":"bukken_PROXY_ARCHITECT_ID__CORP_NAME&\"\"","v":""}]
[null,"【ニ.郵　便　番　号】",null,null,null,null,null,null,null,"〒",{"$f":"bukken_PROXY_ARCHITECT_ID__ZIP&\"\"","v":""}]
[null,"【ホ.所　　在　　地】",null,null,null,null,null,null,null,null,{"$f":"bukken_PROXY_ARCHITECT_ID___address&\"\"","v":""}]
[null,"【ヘ.電　話　番　号】",null,null,null,null,null,null,null,null,{"$f":"bukken_PROXY_ARCHITECT_ID__TEL&\"\"","v":""}]
["【3.設計者】"]
["（代表となる設計者）"]
[null,"【イ.資　　　　　格】",null,null,null,null,null,null,null,"（",{"$f":"IF(入力用!D33=\"\",\"\",入力用!D33)","v":""},null,"）","建築士",null,null,null,null,"（",{"$f":"IF(入力用!J33=\"\",\"\",入力用!J33)","v":""},null,null,null,"）","登録",null,null,"第",{"$f":"IF(入力用!R33=\"\",\"\",入力用!R33)","v":""},null,null,null,"号"]
[null,"【ロ.氏　　　　　名】",null,null,null,null,null,null,null,null,{"$f":"IF(入力用!F35=\"\",\"\",入力用!F35)","v":""}]
[null,"【ハ.建築士事務所名】",null,null,null,null,null,null,null,"（",{"$f":"IF(入力用!D36=\"\",\"\",入力用!D36)","v":""},null,"）","建築士事務所",null,null,null,null,"（",{"$f":"IF(入力用!L36=\"\",\"\",入力用!L36)","v":""},null,null,"）","知事登録",null,null,null,"第",{"$f":"IF(入力用!T36=\"\",\"\",入力用!T36)","v":""},null,null,null,"号"]
[null,null,null,null,null,null,null,null,null,null,{"$f":"IF(入力用!F38=\"\",\"\",入力用!F38)","v":""}]
[null,"【ニ.郵　便　番　号】",null,null,null,null,null,null,null,"〒",{"$f":"IF(入力用!F39=\"\",\"\",入力用!F39)","v":""}]
[null,"【ホ.所　　在　　地】",null,null,null,null,null,null,null,null,{"$f":"IF(入力用!L39=\"\",\"\",入力用!L39)","v":""}]
[null,"【ヘ.電　話　番　号】",null,null,null,null,null,null,null,null,{"$f":"IF(入力用!F40=\"\",\"\",入力用!F40)","v":""}]
[null,"【ト.作成又は確認した設計図書】",null,null,null,null,null,null,null,null,null,null,null,{"$f":"IF(入力用!I41=\"\",\"\",入力用!I41)","v":""}]
[]
["（その他の設計者）"]
[null,"【イ.資　　　　　格】",null,null,null,null,null,null,null,"（",{"$f":"IF(入力用!D42=\"\",\"\",入力用!D42)","v":""},null,"）","建築士",null,null,null,null,"（",{"$f":"IF(入力用!J42=\"\",\"\",入力用!J42)","v":""},null,null,null,"）","登録",null,null,"第",{"$f":"IF(入力用!R42=\"\",\"\",入力用!R42)","v":""},null,null,null,"号"]
[null,"【ロ.氏　　　　　名】",null,null,null,null,null,null,null,null,{"$f":"IF(入力用!F44=\"\",\"\",入力用!F44)","v":""}]
[null,"【ハ.建築士事務所名】",null,null,null,null,null,null,null,"（",{"$f":"IF(入力用!D45=\"\",\"\",入力用!D45)","v":""},null,"）","建築士事務所",null,null,null,null,"（",{"$f":"IF(入力用!L45=\"\",\"\",入力用!L45)","v":""},null,null,"）","知事登録",null,null,null,"第",{"$f":"IF(入力用!T45=\"\",\"\",入力用!T45)","v":""},null,null,null,"号"]
[null,null,null,null,null,null,null,null,null,null,{"$f":"IF(入力用!F47=\"\",\"\",入力用!F47)","v":""}]
[null,"【ニ.郵　便　番　号】",null,null,null,null,null,null,null,"〒",{"$f":"IF(入力用!F48=\"\",\"\",入力用!F48)","v":""}]
[null,"【ホ.所　　在　　地】",null,null,null,null,null,null,null,null,{"$f":"IF(入力用!L48=\"\",\"\",入力用!L48)","v":""}]
[null,"【ヘ.電　話　番　号】",null,null,null,null,null,null,null,null,{"$f":"IF(入力用!F49=\"\",\"\",入力用!F49)","v":""}]
[null,"【ト.作成又は確認した設計図書】",null,null,null,null,null,null,null,null,null,null,null,{"$f":"IF(入力用!I50=\"\",\"\",入力用!I50)","v":""}]
[]
[null,"【イ.資　　　　　格】",null,null,null,null,null,null,null,"（",{"$f":"IF(入力用!D51=\"\",\"\",入力用!D51)","v":""},null,"）","建築士",null,null,null,null,"（",{"$f":"IF(入力用!J51=\"\",\"\",入力用!J51)","v":""},null,null,null,"）","登録",null,null,"第",{"$f":"IF(入力用!R51=\"\",\"\",入力用!R51)","v":""},null,null,null,"号"]
[null,"【ロ.氏　　　　　名】",null,null,null,null,null,null,null,null,{"$f":"IF(入力用!F53=\"\",\"\",入力用!F53)","v":""}]
[null,"【ハ.建築士事務所名】",null,null,null,null,null,null,null,"（",{"$f":"IF(入力用!D54=\"\",\"\",入力用!D54)","v":""},null,"）","建築士事務所",null,null,null,null,"（",{"$f":"IF(入力用!L54=\"\",\"\",入力用!L54)","v":""},null,null,"）","知事登録",null,null,null,"第",{"$f":"IF(入力用!T54=\"\",\"\",入力用!T54)","v":""},null,null,null,"号"]
[null,null,null,null,null,null,null,null,null,null,{"$f":"IF(入力用!F56=\"\",\"\",入力用!F56)","v":""}]
[null,"【ニ.郵　便　番　号】",null,null,null,null,null,null,null,"〒",{"$f":"IF(入力用!F57=\"\",\"\",入力用!F57)","v":""}]
[null,"【ホ.所　　在　　地】",null,null,null,null,null,null,null,null,{"$f":"IF(入力用!L57=\"\",\"\",入力用!L57)","v":""}]
[null,"【ヘ.電　話　番　号】",null,null,null,null,null,null,null,null,{"$f":"IF(入力用!F58=\"\",\"\",入力用!F58)","v":""}]
[null,"【ト.作成又は確認した設計図書】",null,null,null,null,null,null,null,null,null,null,null,{"$f":"IF(入力用!I59=\"\",\"\",入力用!I59)","v":""}]
[]
[null,"【イ.資　　　　　格】",null,null,null,null,null,null,null,"（",{"$f":"IF(入力用!D60=\"\",\"\",入力用!D60)","v":""},null,"）","建築士",null,null,null,null,"（",{"$f":"IF(入力用!J60=\"\",\"\",入力用!J60)","v":""},null,null,null,"）","登録",null,null,"第",{"$f":"IF(入力用!R60=\"\",\"\",入力用!R60)","v":""},null,null,null,"号"]
[null,"【ロ.氏　　　　　名】",null,null,null,null,null,null,null,null,{"$f":"IF(入力用!F62=\"\",\"\",入力用!F62)","v":""}]
[null,"【ハ.建築士事務所名】",null,null,null,null,null,null,null,"（",{"$f":"IF(入力用!D63=\"\",\"\",入力用!D63)","v":""},null,"）","建築士事務所",null,null,null,null,"（",{"$f":"IF(入力用!L63=\"\",\"\",入力用!L63)","v":""},null,null,"）","知事登録",null,null,null,"第",{"$f":"IF(入力用!T63=\"\",\"\",入力用!T63)","v":""},null,null,null,"号"]
[null,null,null,null,null,null,null,null,null,null,{"$f":"IF(入力用!F65=\"\",\"\",入力用!F65)","v":""}]
[null,"【ニ.郵　便　番　号】",null,null,null,null,null,null,null,"〒",{"$f":"IF(入力用!F66=\"\",\"\",入力用!F66)","v":""}]
[null,"【ホ.所　　在　　地】",null,null,null,null,null,null,null,null,{"$f":"IF(入力用!L66=\"\",\"\",入力用!L66)","v":""}]
[null,"【ヘ.電　話　番　号】",null,null,null,null,null,null,null,null,{"$f":"IF(入力用!F67=\"\",\"\",入力用!F67)","v":""}]
[null,"【ト.作成又は確認した設計図書】",null,null,null,null,null,null,null,null,null,null,null,{"$f":"IF(入力用!I68=\"\",\"\",入力用!I68)","v":""}]
[]
["（構造設計一級建築士である旨の表示をした者）"]
[null,"上記の設計者のうち、"]
[null,{"$f":"IF(K59<>\"\",\"☑\",\"□\")","v":"□"},null,"建築士法第２０条の２第１項の表示をした者"]
[null,"【イ.氏　　　　　名】",null,null,null,null,null,null,null,null,{"$f":"IF(入力用!D70=\"\",\"\",入力用!D70)","v":""}]
[null,"【ロ.資　　　　　格】",null,null,null,null,null,null,null,null,"構造設計一級建築士交付",null,null,null,null,null,null,null,null,null,null,"第",{"$f":"IF(入力用!M71=\"\",\"\",入力用!M71)","v":""},null,null,null,"号"]
[null,{"$f":"IF(K62<>\"\",\"☑\",\"□\")","v":"□"},null,"建築士法第２０条の２第３項の表示をした者"]
[null,"【イ.氏　　　　　名】",null,null,null,null,null,null,null,null,{"$f":"IF(入力用!D73=\"\",\"\",入力用!D73)","v":""}]
[null,"【ロ.資　　　　　格】",null,null,null,null,null,null,null,null,"構造設計一級建築士交付",null,null,null,null,null,null,null,null,null,null,"第",{"$f":"IF(入力用!M74=\"\",\"\",入力用!M74)","v":""},null,null,null,"号"]
[]
["【4.敷地の位置】"]
[null,"【イ.地　名　地　番】",null,null,null,null,null,null,null,null,{"$f":"IF(入力用!G75=\"\",\"\",入力用!G75)","v":""}]
[]
[null,"【ロ.住　居　表　示】",null,null,null,null,null,null,null,null,{"$f":"IF(入力用!G76=\"\",\"\",入力用!G76)","v":""}]
[]
["【5.確認の申請】"]
[null,{"$f":"IF(入力用!B78=\"申請済\",\"☑\",\"□\")","v":"☑"},null,"申　　請　　済",null,null,null,null,null,null,"（",{"$f":"bukken_KAKU_HIKIUKE_INSPECTBODY_ID&\"\"","v":""},null,null,null,null,null,null,null,null,null,null,null,null,null,{"$f":"bukken_KAKU_HIKIUKE_INSPECTBODY__address&\"\"","v":""},null,null,null,null,null,null,null,"）"]
[null,{"$f":"IF(入力用!B78=\"未申請\",\"☑\",\"□\")","v":"□"},null,"未　　申　　請",null,null,null,null,null,null,"（",{"$f":"bukken_PAGE2_KAKUNIN_INSPECTBODY_ID&\"\"","v":""},null,null,null,null,null,null,null,null,null,null,null,null,null,{"$f":"bukken_PAGE2_KAKUNIN_INSPECTBODY__address&\"\"","v":""},null,null,null,null,null,null,null,"）"]
[]
["【6.工事種別】"]
[null,{"$f":"入力用!B80&\" \"&入力用!C80&\" \"&入力用!E80&\" \"&入力用!F80&\" \"&入力用!H80&\" \"&入力用!I80&\" \"&入力用!K80&\" \"&入力用!L80&\" \"&IF(LEFT(入力用!F2,4)=\"計画変更\",入力用!N80&\" \"&入力用!O80&\" \",\"\")&入力用!B81&\" \"&入力用!C81&\" \"&入力用!H81&\" \"&入力用!I81","v":"☐ 新築 ☐ 増築 ☐ 改築 ☐ 移転 ☐ 大規模の修繕 ☐ 大規模の模様替"}]
[]
["【7.備考】"]
[null,"【建築物の名称又は工事名】"]
[null,null,null,null,{"$f":"IF(入力用!F106=\"\",\"\",入力用!F106)","v":""}]
[]
[]
[null,{"$f":"IF(E83=\"\",\"\",\"【構造計算適合性判定（任意）を申請する理由】\")","v":""}]
[null,null,null,null,{"$f":"入力用!J16&\"\"","v":""}]

{"sheet":"【第三面】","index":12,"n_rows":36,"n_cols":37,"rows_kept":36,"cut":false,"hidden":false,"merged":[[18,1,18,2],[0,0,0,33],[2,11,2,33],[4,14,4,18],[7,14,7,18],[8,14,8,18],[9,14,9,17],[9,25,9,28],[10,11,11,19],[10,23,11,31],[13,1,13,2],[14,1,14,2],[17,1,17,2],[31,2,31,22],[35,3,39,32],[19,1,19,2],[20,1,20,2],[23,10,23,33],[26,1,26,2],[27,10,27,22],[28,1,28,2]]}
["（第三面）",null,null,null,null,null,null,null,null,null,null,null,null,null,null,null,null,null,null,null,null,null,null,null,null,null,null,null,null,null,null,null,null,null,null,1,"TowerNo"]
["建築物独立部分別概要"]
["【1.番　　号】",null,null,null,null,null,null,null,null,null,null,{"$f":"OFFSET(bukken_tower_TOWER_NO, TowerNo, 0)&IF(OFFSET(bukken_tower_TOWER_SYMBOL, TowerNo, 0)<>\"\",IF(LEFT(OFFSET(bukken_tower_TOWER_SYMBOL, TowerNo, 0),1)=\"の\",\"\",\" - \"),\"\")&OFFSET(bukken_tower_TOWER_SYMBOL, TowerNo, 0)&\"　\"&OFFSET(bukken_tower_BUILD_NAME, TowerNo, 0) & \"\"","v":"　"}]
[]
["【2.延べ面積】",null,null,null,null,null,null,null,null,null,null,null,null,null,{"$f":"OFFSET(bukken_tower_CHARGE_MENSEKI, TowerNo, 0)","v":0},null,null,null,null,"㎡"]
[]
["【3.建築物の高さ等】"]
[null,"【イ.最 高 の 高 さ】",null,null,null,null,null,null,null,null,null,null,null,null,{"$f":"OFFSET(bukken_tower_TAKASA_MAX, TowerNo, 0)","v":0},null,null,null,null,"ｍ"]
[null,"【ロ.最高の軒の高さ】",null,null,null,null,null,null,null,null,null,null,null,null,{"$f":"OFFSET(bukken_tower_TAKASA_KEN_MAX, TowerNo, 0)","v":0},null,null,null,null,"ｍ"]
[null,"【ハ.階　　　　　数】",null,null,null,null,null,null,null,null,null,"地上",null,"（",{"$f":"OFFSET(bukken_tower_KAISU_TIKAI_NOZOKU, TowerNo, 0)","v":0},null,null,null,"）",null,null,null,"地下",null,"（",{"$f":"OFFSET(bukken_tower_KAISU_TIKAI, TowerNo, 0)","v":0},null,null,null,"）"]
[null,"【ニ.構　　　　　造】",null,null,null,null,null,null,null,null,null,{"$f":"OFFSET(bukken_tower_BILL_KOUZOU1_ID, TowerNo, 0) & \"\"","v":""},null,null,null,null,null,null,null,null," 一部",null,null,{"$f":"OFFSET(bukken_tower_BILL_KOUZOU2_TEXT, TowerNo, 0) & \"\"","v":""},null,null,null,null,null,null,null,null,{"$f":"IF(X11=\"\",\"造\",\"\")","v":"造"}]
[]
["【4.特定構造計算基準又は特定増改築構造計算基準の別】"]
[null,{"$f":"IF(AJ14=\"特定構造計算基準\", \"☑\",\"□\")","v":"□"},null,"特定構造計算基準",null,null,null,null,null,null,null,null,null,null,null,null,null,null,null,null,null,null,null,null,null,null,null,null,null,null,null,null,null,null,null,{"$f":"OFFSET(bukken_tower_TOKUTEI_KEISAN_KIJYUN, TowerNo, 0)","v":0}]
[null,{"$f":"IF(AJ14=\"特定増改築構造計算基準\", \"☑\",\"□\")","v":"□"},null,"特定増改築構造計算基準"]
[]
["【5.構造計算の区分】"]
[null,{"$f":"IF(AJ18=\"令第81条第2項第1号イ\", \"☑\",\"□\")","v":"□"},null,"建築基準法施行令第８１条第２項第１号イに掲げる構造計算",null,null,null,null,null,null,null,null,null,null,null,null,null,null,null,null,null,null,null,null,null,null,null,null,null,null,null,null,null,null,null,{"$f":"OFFSET(bukken_tower_KOUZOU_KEISAN_KIND, TowerNo, 0)","v":0}]
[null,{"$f":"IF(AJ18=\"令第81条第2項第1号ロ\", \"☑\",\"□\")","v":"□"},null,"建築基準法施行令第８１条第２項第１号ロに掲げる構造計算"]
[null,{"$f":"IF(AJ18=\"令第81条第2項第2号イ\", \"☑\",\"□\")","v":"□"},null,"建築基準法施行令第８１条第２項第２号イに掲げる構造計算"]
[null,{"$f":"IF(AJ18=\"令第81条第3項\", \"☑\",\"□\")","v":"□"},null,"建築基準法施行令第８１条第３項に掲げる構造計算"]
[]
["【6.構造計算に用いたプログラム】",null,null,null,null,null,null,null,null,null,null,null,null,null,null,null,null,null,null,null,null,null,null,null,null,null,null,null,null,null,null,null,null,null,null,null,"表示用"]
[null,"【イ.名　　　　　称】",null,null,null,null,null,null,null,null,{"$f":"OFFSET(bukken_tower_PROG_1_ID__PROGRAM_NAME, TowerNo, 0) & AK24","v":"　"},null,null,null,null,null,null,null,null,null,null,null,null,null,null,null,null,null,null,null,null,null,null,null,null,{"$f":"IF(OFFSET(bukken_tower_PROG_1_ID__PROGRAM_VER, TowerNo, 0)=\"\", \"\", OFFSET(bukken_tower_PROG_1_ID__PROGRAM_VER, TowerNo, 0))","v":""},{"$f":"\"　\" & IF(AND(AJ24<>\"\",ISNUMBER(_xlfn.NUMBERVALUE(MID(AJ24,1,1)))),\"Ver. \"&AJ24,AJ24)","v":"　"}]
[null,"【ロ.区　　　　　分】"]
[]
[null,{"$f":"IF(AJ27=\"有\", \"☑\",\"□\")","v":"□"},null,"建築基準法第２０条第１項第２号イ又は第３号イの認定を受けたプログラム",null,null,null,null,null,null,null,null,null,null,null,null,null,null,null,null,null,null,null,null,null,null,null,null,null,null,null,null,null,null,null,{"$f":"OFFSET(bukken_tower_PROG_1_ID__AUTH, TowerNo, 0)","v":0}]
[null,null,null,"（大臣認定番号",null,null,null,null,null,null,{"$f":"OFFSET(bukken_tower_PROG_1_ID__AUTH_NO, TowerNo, 0) & \"\"","v":""},null,null,null,null,null,null,null,null,null,null,null,null,"）"]
[null,{"$f":"IF(AJ27=\"無\", \"☑\",\"□\")","v":"□"},null,"その他のプログラム"]
[]
["【7.建築基準法施行令第１３７条の２各号に定める基準の区分】"]
[null,"（",{"$f":"OFFSET(bukken_tower_KOUZOU_TAIRYOKU_KIJYUN, TowerNo, 0) & \"\"","v":""},null,null,null,null,null,null,null,null,null,null,null,null,null,null,null,null,null,null,null,null,"）"]
[]
["【8.備考】"]
[]
[null,null,null,{"$f":"OFFSET(bukken_tower_PAGE3_BIKO, TowerNo, 0) & \"\"","v":""}]

{"sheet":"【旧】委任状","index":13,"n_rows":33,"n_cols":18,"rows_kept":33,"cut":false,"hidden":true,"merged":[[29,4,29,14],[30,4,30,22],[31,4,31,22],[32,4,32,22],[9,4,9,22],[10,4,10,22],[18,8,18,22],[19,8,19,22],[25,17,25,22],[1,0,2,22],[5,3,5,22],[6,3,6,22],[7,4,7,22],[8,4,8,22]]}
[]
["委任状"]
[]
[]
["【代理人】"]
[null,"【資格】",null,{"$f":"IF(入力用!D25=\"\",\"\",入力用!D25)&\"建築士　\"&IF(入力用!J25=\"\",\"\",入力用!J25)&\"登録　\"&\"第　\"&IF(入力用!R25=\"\",\"\",入力用!R25)&\"　号\"","v":"建築士　登録　第　　号"}]
[null,"【氏名】",null,{"$f":"IF(入力用!#REF!=\"\",\"\",入力用!#REF!)","v":{"$error":"#REF!"}}]
[null,"【会社名】",null,null,{"$f":"IF(入力用!#REF!=\"\",\"\",入力用!#REF!)","v":{"$error":"#REF!"}}]
[null,"【郵便番号】",null,null,{"$f":"\"〒\"&IF(入力用!#REF!=\"\",\"\",入力用!#REF!)","v":{"$error":"#REF!"}}]
[null,"【所在地】",null,null,{"$f":"IF(入力用!#REF!=\"\",\"\",入力用!#REF!)","v":{"$error":"#REF!"}}]
[null,"【電話番号】",null,null,{"$f":"IF(入力用!#REF!=\"\",\"\",入力用!#REF!)","v":{"$error":"#REF!"}}]
[]
[]
[]
["上記の者を代理人と定め、下記の建築物について構造計算適合性判定に関する手続きの一"]
["切を委任します。"]
[]
[]
[null,"【１.建築物の地名地番】",null,null,null,null,null,null,{"$f":"IF(入力用!#REF!=\"\",\"\",入力用!#REF!)","v":{"$error":"#REF!"}}]
[null,"【２.建築物の名称】",null,null,null,null,null,null,{"$f":"IF(入力用!F106=\"\",\"\",入力用!F106)","v":""}]
[]
[]
[]
[]
[]
[null,null,null,null,null,null,null,null,null,null,null,null,null,null,null,null,null,{"$f":"IF(入力用!D127=\"\",\"　　年　　　月　　　日\",入力用!D127)","v":"　　年　　　月　　　日"}]
[]
[]
["【委任者】"]
[null,"【氏名】",null,null,{"$f":"IF(入力用!#REF!=\"\",\"\",入力用!#REF!)","v":{"$error":"#REF!"}},null,null,null,null,null,null,null,null,null,null,"㊞"]
[null,"【郵便番号】",null,null,{"$f":"\"〒\"&IF(入力用!#REF!=\"\",\"\",入力用!#REF!)","v":{"$error":"#REF!"}}]
[null,"【住所】",null,null,{"$f":"IF(入力用!#REF!=\"\",\"\",入力用!#REF!)","v":{"$error":"#REF!"}}]
[null,"【電話番号】",null,null,{"$f":"IF(入力用!#REF!=\"\",\"\",入力用!#REF!)","v":{"$error":"#REF!"}}]

{"sheet":"第1面 別紙(申請者)","index":14,"n_rows":19,"n_cols":7,"rows_kept":19,"cut":false,"hidden":false,"merged":[[0,0,0,33],[2,6,4,32],[7,6,9,32],[12,6,14,32],[17,6,19,32]]}
["（第一面）別紙"]
[]
[null,null,null,null,null,null,{"$f":"IF(入力用!BI5=\"\",\"\",入力用!BI5&CHAR(10))&入力用!BI6","v":""}]
[null,"申請者氏名"]
[]
[]
[]
[null,null,null,null,null,null,{"$f":"IF(入力用!BI8=\"\",\"\",入力用!BI8&CHAR(10))&入力用!BI9","v":""}]
[null,"申請者氏名"]
[]
[]
[]
[null,null,null,null,null,null,{"$f":"IF(入力用!BI11=\"\",\"\",入力用!BI11&CHAR(10))&入力用!BI12","v":""}]
[null,"申請者氏名"]
[]
[]
[]
[null,null,null,null,null,null,{"$f":"IF(入力用!BI13=\"\",\"\",入力用!BI13&CHAR(10))&入力用!BI14","v":""}]
[null,"申請者氏名"]

{"sheet":"第2面 別紙(建築主)","index":15,"n_rows":29,"n_cols":12,"rows_kept":29,"cut":false,"hidden":false,"merged":[[0,0,0,34],[2,11,2,34],[5,11,5,15],[6,11,6,34],[3,11,3,34],[4,11,4,34],[21,11,21,34],[23,11,23,34],[26,11,26,15],[27,11,27,34],[7,11,7,34],[16,11,16,34],[19,11,19,15],[20,11,20,34],[17,11,17,34],[18,11,18,34],[10,11,10,34],[11,11,11,34],[9,11,9,34],[12,11,12,15],[13,11,13,34],[14,11,14,34],[35,11,35,34],[31,11,31,34],[32,11,32,34],[24,11,24,34],[25,11,25,34],[28,11,28,34],[30,11,30,34],[33,11,33,15],[34,11,34,34]]}
["（第二面）別紙"]
["【1.建築主】"]
[null,"【イ.氏名のフリガナ】",null,null,null,null,null,null,null,null,null,{"$f":"bukken_OWNER_2_ID__CORP_NAME_KANA&\"　\"&bukken_OWNER_2_ID__NAME_KANA","v":"　"}]
[null,"【ロ.氏　　　　　名】",null,null,null,null,null,null,null,null,null,{"$f":"IF(bukken_OWNER_2_ID__CORP_NAME=\"\",bukken_OWNER_2_ID__NAME&\"\",bukken_OWNER_2_ID__CORP_NAME)","v":""}]
[null,null,null,null,null,null,null,null,null,null,null,{"$f":"IF(L4=bukken_OWNER_2_ID__NAME,\"\",bukken_OWNER_2_ID__NAME&\"\")","v":""}]
[null,"【ハ.郵　便　番　号】",null,null,null,null,null,null,null,null,"〒",{"$f":"bukken_OWNER_2_ID__ZIP&\"\"","v":""}]
[null,"【ニ.住　　　　　所】",null,null,null,null,null,null,null,null,null,{"$f":"bukken_OWNER_2_ID___address&\"\"","v":""}]
[null,"【ホ.電　話　番　号】",null,null,null,null,null,null,null,null,null,{"$f":"bukken_OWNER_2_ID__TEL&\"\"","v":""}]
[]
[null,"【イ.氏名のフリガナ】",null,null,null,null,null,null,null,null,null,{"$f":"bukken_OWNER_3_ID__CORP_NAME_KANA&\"　\"&bukken_OWNER_3_ID__NAME_KANA","v":"　"}]
[null,"【ロ.氏　　　　　名】",null,null,null,null,null,null,null,null,null,{"$f":"IF(bukken_OWNER_3_ID__CORP_NAME=\"\",bukken_OWNER_3_ID__NAME&\"\",bukken_OWNER_3_ID__CORP_NAME)","v":""}]
[null,null,null,null,null,null,null,null,null,null,null,{"$f":"IF(L11=bukken_OWNER_3_ID__NAME,\"\",bukken_OWNER_3_ID__NAME&\"\")","v":""}]
[null,"【ハ.郵　便　番　号】",null,null,null,null,null,null,null,null,"〒",{"$f":"bukken_OWNER_3_ID__ZIP&\"\"","v":""}]
[null,"【ニ.住　　　　　所】",null,null,null,null,null,null,null,null,null,{"$f":"bukken_OWNER_3_ID___address&\"\"","v":""}]
[null,"【ホ.電　話　番　号】",null,null,null,null,null,null,null,null,null,{"$f":"bukken_OWNER_3_ID__TEL&\"\"","v":""}]
[]
[null,"【イ.氏名のフリガナ】",null,null,null,null,null,null,null,null,null,{"$f":"bukken_OWNER_4_ID__CORP_NAME_KANA&\"　\"&bukken_OWNER_4_ID__NAME_KANA","v":"　"}]
[null,"【ロ.氏　　　　　名】",null,null,null,null,null,null,null,null,null,{"$f":"IF(bukken_OWNER_4_ID__CORP_NAME=\"\",bukken_OWNER_4_ID__NAME&\"\",bukken_OWNER_4_ID__CORP_NAME)","v":""}]
[null,null,null,null,null,null,null,null,null,null,null,{"$f":"IF(L18=bukken_OWNER_4_ID__NAME,\"\",bukken_OWNER_4_ID__NAME&\"\")","v":""}]
[null,"【ハ.郵　便　番　号】",null,null,null,null,null,null,null,null,"〒",{"$f":"bukken_OWNER_4_ID__ZIP&\"\"","v":""}]
[null,"【ニ.住　　　　　所】",null,null,null,null,null,null,null,null,null,{"$f":"bukken_OWNER_4_ID___address&\"\"","v":""}]
[null,"【ホ.電　話　番　号】",null,null,null,null,null,null,null,null,null,{"$f":"bukken_OWNER_4_ID__TEL&\"\"","v":""}]
[]
[null,"【イ.氏名のフリガナ】",null,null,null,null,null,null,null,null,null,{"$f":"bukken_OWNER_5_ID__CORP_NAME_KANA&\"　\"&bukken_OWNER_5_ID__NAME_KANA","v":"　"}]
[null,"【ロ.氏　　　　　名】",null,null,null,null,null,null,null,null,null,{"$f":"IF(bukken_OWNER_5_ID__CORP_NAME=\"\",bukken_OWNER_5_ID__NAME&\"\",bukken_OWNER_5_ID__CORP_NAME)","v":""}]
[null,null,null,null,null,null,null,null,null,null,null,{"$f":"IF(L25=bukken_OWNER_5_ID__NAME,\"\",bukken_OWNER_5_ID__NAME&\"\")","v":""}]
[null,"【ハ.郵　便　番　号】",null,null,null,null,null,null,null,null,"〒",{"$f":"bukken_OWNER_5_ID__ZIP&\"\"","v":""}]
[null,"【ニ.住　　　　　所】",null,null,null,null,null,null,null,null,null,{"$f":"bukken_OWNER_5_ID___address&\"\"","v":""}]
[null,"【ホ.電　話　番　号】",null,null,null,null,null,null,null,null,null,{"$f":"bukken_OWNER_5_ID__TEL&\"\"","v":""}]

{"sheet":"第2面 別紙(代理者)","index":16,"n_rows":9,"n_cols":34,"rows_kept":9,"cut":false,"hidden":false,"merged":[[5,11,5,34],[6,11,6,15],[7,11,7,34],[8,11,8,34],[0,0,0,34],[2,11,2,12],[2,20,2,23],[2,29,2,32],[4,11,4,12],[4,20,4,22],[4,29,4,32],[3,11,3,32]]}
["（第二面）別紙"]
["【2.代理者】"]
[null,"【イ.資　　　　　格】",null,null,null,null,null,null,null,null,"（",{"$f":"入力用!BC25&\"\"","v":""},null,"）","建築士",null,null,null,null,"（",{"$f":"入力用!BI25&\"\"","v":""},null,null,null,"）","登録",null,null,"第",{"$f":"入力用!BQ25&\"\"","v":""},null,null,null,"号"]
[null,"【ロ.氏　　　　　名】",null,null,null,null,null,null,null,null,null,{"$f":"入力用!BE27&\"\"","v":""}]
[null,"【ハ.建築士事務所名】",null,null,null,null,null,null,null,null,"（",{"$f":"入力用!BC28&\"\"","v":""},null,"）","建築士事務所",null,null,null,null,"（",{"$f":"入力用!BK28&\"\"","v":""},null,null,"）","知事登録",null,null,null,"第",{"$f":"入力用!BS28&\"\"","v":""},null,null,null,"号"]
[null,null,null,null,null,null,null,null,null,null,null,{"$f":"入力用!BE30&\"\"","v":""}]
[null,"【ニ.郵　便　番　号】",null,null,null,null,null,null,null,null,"〒",{"$f":"入力用!BE31&\"\"","v":""}]
[null,"【ホ.所　　在　　地】",null,null,null,null,null,null,null,null,null,{"$f":"入力用!BK31&\"\"","v":""}]
[null,"【ヘ.電　話　番　号】",null,null,null,null,null,null,null,null,null,{"$f":"入力用!BE32&\"\"","v":""}]

{"sheet":"第2面 別紙(その他設計者)","index":17,"n_rows":47,"n_cols":34,"rows_kept":47,"cut":false,"hidden":false,"merged":[[46,14,46,34],[39,29,39,32],[42,11,42,34],[43,11,43,15],[44,11,44,34],[45,11,45,34],[26,11,26,34],[27,11,27,34],[28,14,28,34],[41,11,41,12],[41,20,41,22],[41,29,41,32],[32,11,32,12],[32,20,32,22],[32,29,32,32],[33,11,33,34],[34,11,34,15],[35,11,35,34],[36,11,36,34],[37,14,37,34],[39,11,39,12],[39,20,39,23],[15,11,15,34],[16,11,16,15],[30,11,30,12],[30,20,30,23],[30,29,30,32],[18,11,18,34],[19,14,19,34],[21,11,21,12],[21,20,21,23],[21,29,21,32],[23,11,23,12],[23,20,23,22],[23,29,23,32],[22,11,22,32],[24,11,24,34],[25,11,25,15],[12,11,12,12],[12,20,12,23],[12,29,12,32],[13,11,13,32],[14,11,14,12],[14,20,14,22],[14,29,14,32],[31,11,31,32],[40,11,40,32],[0,0,0,34],[3,11,3,12],[3,20,3,23],[3,29,3,32],[5,11,5,12],[5,20,5,22],[5,29,5,32],[4,11,4,32],[17,11,17,34],[6,11,6,34],[7,11,7,15],[8,11,8,34],[9,11,9,34],[10,14,10,34]]}
["（第二面）別紙"]
["【3.設計者】"]
["（その他の設計者）"]
[null,"【イ.資　　　　　格】",null,null,null,null,null,null,null,null,"（",{"$f":"bukken_ARCHITECT_4_ID__LICENSE_ID&\"\"","v":""},null,"）","建築士",null,null,null,null,"（",{"$f":"bukken_ARCHITECT_4_ID__LICENSE_REGIST_ID&\"\"","v":""},null,null,null,"）","登録",null,null,"第",{"$f":"bukken_ARCHITECT_4_ID__LICENSE_NO&\"\"","v":""},null,null,null,"号"]
[null,"【ロ.氏　　　　　名】",null,null,null,null,null,null,null,null,null,{"$f":"bukken_ARCHITECT_4_ID__NAME&\"\"","v":""}]
[null,"【ハ.建築士事務所名】",null,null,null,null,null,null,null,null,"（",{"$f":"bukken_ARCHITECT_4_ID__CORP_LICENSE_ID&\"\"","v":""},null,"）","建築士事務所",null,null,null,null,"（",{"$f":"bukken_ARCHITECT_4_ID__CORP_LICENSE_REGIST_ID&\"\"","v":""},null,null,"）","知事登録",null,null,null,"第",{"$f":"bukken_ARCHITECT_4_ID__CORP_LICENSE_NO&\"\"","v":""},null,null,null,"号"]
[null,null,null,null,null,null,null,null,null,null,null,{"$f":"bukken_ARCHITECT_4_ID__CORP_NAME&\"\"","v":""}]
[null,"【ニ.郵　便　番　号】",null,null,null,null,null,null,null,null,"〒",{"$f":"bukken_ARCHITECT_4_ID__ZIP&\"\"","v":""}]
[null,"【ホ.所　　在　　地】",null,null,null,null,null,null,null,null,null,{"$f":"bukken_ARCHITECT_4_ID___address&\"\"","v":""}]
[null,"【ヘ.電　話　番　号】",null,null,null,null,null,null,null,null,null,{"$f":"bukken_ARCHITECT_4_ID__TEL&\"\"","v":""}]
[null,"【ト.作成又は確認した設計図書】",null,null,null,null,null,null,null,null,null,null,null,null,{"$f":"bukken_ARCHITECT_4_DOC&\"\"","v":""}]
[]
[null,"【イ.資　　　　　格】",null,null,null,null,null,null,null,null,"（",{"$f":"bukken_ARCHITECT_5_ID__LICENSE_ID&\"\"","v":""},null,"）","建築士",null,null,null,null,"（",{"$f":"bukken_ARCHITECT_5_ID__LICENSE_REGIST_ID&\"\"","v":""},null,null,null,"）","登録",null,null,"第",{"$f":"bukken_ARCHITECT_5_ID__LICENSE_NO&\"\"","v":""},null,null,null,"号"]
[null,"【ロ.氏　　　　　名】",null,null,null,null,null,null,null,null,null,{"$f":"bukken_ARCHITECT_5_ID__NAME&\"\"","v":""}]
[null,"【ハ.建築士事務所名】",null,null,null,null,null,null,null,null,"（",{"$f":"bukken_ARCHITECT_5_ID__CORP_LICENSE_ID&\"\"","v":""},null,"）","建築士事務所",null,null,null,null,"（",{"$f":"bukken_ARCHITECT_5_ID__CORP_LICENSE_REGIST_ID&\"\"","v":""},null,null,"）","知事登録",null,null,null,"第",{"$f":"bukken_ARCHITECT_5_ID__CORP_LICENSE_NO&\"\"","v":""},null,null,null,"号"]
[null,null,null,null,null,null,null,null,null,null,null,{"$f":"bukken_ARCHITECT_5_ID__CORP_NAME&\"\"","v":""}]
[null,"【ニ.郵　便　番　号】",null,null,null,null,null,null,null,null,"〒",{"$f":"bukken_ARCHITECT_5_ID__ZIP&\"\"","v":""}]
[null,"【ホ.所　　在　　地】",null,null,null,null,null,null,null,null,null,{"$f":"bukken_ARCHITECT_5_ID___address&\"\"","v":""}]
[null,"【ヘ.電　話　番　号】",null,null,null,null,null,null,null,null,null,{"$f":"bukken_ARCHITECT_5_ID__TEL&\"\"","v":""}]
[null,"【ト.作成又は確認した設計図書】",null,null,null,null,null,null,null,null,null,null,null,null,{"$f":"bukken_ARCHITECT_5_DOC&\"\"","v":""}]
[]
[null,"【イ.資　　　　　格】",null,null,null,null,null,null,null,null,"（",{"$f":"bukken_ARCHITECT_6_ID__LICENSE_ID&\"\"","v":""},null,"）","建築士",null,null,null,null,"（",{"$f":"bukken_ARCHITECT_6_ID__LICENSE_REGIST_ID&\"\"","v":""},null,null,null,"）","登録",null,null,"第",{"$f":"bukken_ARCHITECT_6_ID__LICENSE_NO&\"\"","v":""},null,null,null,"号"]
[null,"【ロ.氏　　　　　名】",null,null,null,null,null,null,null,null,null,{"$f":"bukken_ARCHITECT_6_ID__NAME&\"\"","v":""}]
[null,"【ハ.建築士事務所名】",null,null,null,null,null,null,null,null,"（",{"$f":"bukken_ARCHITECT_6_ID__CORP_LICENSE_ID&\"\"","v":""},null,"）","建築士事務所",null,null,null,null,"（",{"$f":"bukken_ARCHITECT_6_ID__CORP_LICENSE_REGIST_ID&\"\"","v":""},null,null,"）","知事登録",null,null,null,"第",{"$f":"bukken_ARCHITECT_6_ID__CORP_LICENSE_NO&\"\"","v":""},null,null,null,"号"]
[null,null,null,null,null,null,null,null,null,null,null,{"$f":"bukken_ARCHITECT_6_ID__CORP_NAME&\"\"","v":""}]
[null,"【ニ.郵　便　番　号】",null,null,null,null,null,null,null,null,"〒",{"$f":"bukken_ARCHITECT_6_ID__ZIP&\"\"","v":""}]
[null,"【ホ.所　　在　　地】",null,null,null,null,null,null,null,null,null,{"$f":"bukken_ARCHITECT_6_ID___address&\"\"","v":""}]
[null,"【ヘ.電　話　番　号】",null,null,null,null,null,null,null,null,null,{"$f":"bukken_ARCHITECT_6_ID__TEL&\"\"","v":""}]
[null,"【ト.作成又は確認した設計図書】",null,null,null,null,null,null,null,null,null,null,null,null,{"$f":"bukken_ARCHITECT_6_DOC&\"\"","v":""}]
[]
[null,"【イ.資　　　　　格】",null,null,null,null,null,null,null,null,"（",{"$f":"bukken_ARCHITECT_7_ID__LICENSE_ID&\"\"","v":""},null,"）","建築士",null,null,null,null,"（",{"$f":"bukken_ARCHITECT_7_ID__LICENSE_REGIST_ID&\"\"","v":""},null,null,null,"）","登録",null,null,"第",{"$f":"bukken_ARCHITECT_7_ID__LICENSE_NO&\"\"","v":""},null,null,null,"号"]
[null,"【ロ.氏　　　　　名】",null,null,null,null,null,null,null,null,null,{"$f":"bukken_ARCHITECT_7_ID__NAME&\"\"","v":""}]
[null,"【ハ.建築士事務所名】",null,null,null,null,null,null,null,null,"（",{"$f":"bukken_ARCHITECT_7_ID__CORP_LICENSE_ID&\"\"","v":""},null,"）","建築士事務所",null,null,null,null,"（",{"$f":"bukken_ARCHITECT_7_ID__CORP_LICENSE_REGIST_ID&\"\"","v":""},null,null,"）","知事登録",null,null,null,"第",{"$f":"bukken_ARCHITECT_7_ID__CORP_LICENSE_NO&\"\"","v":""},null,null,null,"号"]
[null,null,null,null,null,null,null,null,null,null,null,{"$f":"bukken_ARCHITECT_7_ID__CORP_NAME&\"\"","v":""}]
[null,"【ニ.郵　便　番　号】",null,null,null,null,null,null,null,null,"〒",{"$f":"bukken_ARCHITECT_7_ID__ZIP&\"\"","v":""}]
[null,"【ホ.所　　在　　地】",null,null,null,null,null,null,null,null,null,{"$f":"bukken_ARCHITECT_7_ID___address&\"\"","v":""}]
[null,"【ヘ.電　話　番　号】",null,null,null,null,null,null,null,null,null,{"$f":"bukken_ARCHITECT_7_ID__TEL&\"\"","v":""}]
[null,"【ト.作成又は確認した設計図書】",null,null,null,null,null,null,null,null,null,null,null,null,{"$f":"bukken_ARCHITECT_7_DOC&\"\"","v":""}]
[]
[null,"【イ.資　　　　　格】",null,null,null,null,null,null,null,null,"（",{"$f":"bukken_ARCHITECT_8_ID__LICENSE_ID&\"\"","v":""},null,"）","建築士",null,null,null,null,"（",{"$f":"bukken_ARCHITECT_8_ID__LICENSE_REGIST_ID&\"\"","v":""},null,null,null,"）","登録",null,null,"第",{"$f":"bukken_ARCHITECT_8_ID__LICENSE_NO&\"\"","v":""},null,null,null,"号"]
[null,"【ロ.氏　　　　　名】",null,null,null,null,null,null,null,null,null,{"$f":"bukken_ARCHITECT_8_ID__NAME&\"\"","v":""}]
[null,"【ハ.建築士事務所名】",null,null,null,null,null,null,null,null,"（",{"$f":"bukken_ARCHITECT_8_ID__CORP_LICENSE_ID&\"\"","v":""},null,"）","建築士事務所",null,null,null,null,"（",{"$f":"bukken_ARCHITECT_8_ID__CORP_LICENSE_REGIST_ID&\"\"","v":""},null,null,"）","知事登録",null,null,null,"第",{"$f":"bukken_ARCHITECT_8_ID__CORP_LICENSE_NO&\"\"","v":""},null,null,null,"号"]
[null,null,null,null,null,null,null,null,null,null,null,{"$f":"bukken_ARCHITECT_8_ID__CORP_NAME&\"\"","v":""}]
[null,"【ニ.郵　便　番　号】",null,null,null,null,null,null,null,null,"〒",{"$f":"bukken_ARCHITECT_8_ID__ZIP&\"\"","v":""}]
[null,"【ホ.所　　在　　地】",null,null,null,null,null,null,null,null,null,{"$f":"bukken_ARCHITECT_8_ID___address&\"\"","v":""}]
[null,"【ヘ.電　話　番　号】",null,null,null,null,null,null,null,null,null,{"$f":"bukken_ARCHITECT_8_ID__TEL&\"\"","v":""}]
[null,"【ト.作成又は確認した設計図書】",null,null,null,null,null,null,null,null,null,null,null,null,{"$f":"bukken_ARCHITECT_8_DOC&\"\"","v":""}]

{"sheet":"第2面 別紙(構造一級表示)","index":18,"n_rows":52,"n_cols":27,"rows_kept":52,"cut":false,"hidden":false,"merged":[[50,10,50,33],[51,22,51,25],[45,22,45,25],[46,1,46,2],[47,10,47,33],[48,22,48,25],[49,1,49,2],[40,1,40,2],[41,10,41,33],[42,22,42,25],[43,1,43,2],[44,10,44,33],[35,10,35,33],[36,22,36,25],[37,1,37,2],[38,10,38,33],[39,22,39,25],[25,10,25,33],[26,22,26,25],[34,1,34,2],[33,22,33,25],[32,10,32,33],[20,22,20,25],[21,1,21,2],[22,10,22,33],[23,22,23,25],[24,1,24,2],[8,22,8,25],[28,1,28,2],[29,10,29,33],[30,22,30,25],[31,1,31,2],[9,1,9,2],[10,10,10,33],[11,22,11,25],[12,1,12,2],[13,10,13,33],[14,22,14,25],[15,1,15,2],[16,10,16,33],[17,22,17,25],[18,1,18,2],[19,10,19,33],[7,10,7,33],[0,0,0,33],[3,1,3,2],[4,10,4,33],[5,22,5,25],[6,1,6,2]]}
["（第二面）別紙"]
["（構造設計一級建築士である旨の表示をした者）"]
[null,"上記の設計者のうち、"]
[null,{"$f":"IF(K5=\"\",\"□\",\"☑\")","v":"□"},null,"建築士法第２０条の２第１項の表示をした者"]
[null,"【イ.氏　　　　　名】",null,null,null,null,null,null,null,null,{"$f":"入力用!BC70&\"\"","v":""}]
[null,"【ロ.資　　　　　格】",null,null,null,null,null,null,null,null,"構造設計一級建築士交付",null,null,null,null,null,null,null,null,null,null,"第",{"$f":"入力用!BL71&\"\"","v":""},null,null,null,"号"]
[null,{"$f":"IF(K8=\"\",\"□\",\"☑\")","v":"□"},null,"建築士法第２０条の２第１項の表示をした者"]
[null,"【イ.氏　　　　　名】",null,null,null,null,null,null,null,null,{"$f":"入力用!CA70&\"\"","v":""}]
[null,"【ロ.資　　　　　格】",null,null,null,null,null,null,null,null,"構造設計一級建築士交付",null,null,null,null,null,null,null,null,null,null,"第",{"$f":"入力用!CJ71&\"\"","v":""},null,null,null,"号"]
[null,{"$f":"IF(K11=\"\",\"□\",\"☑\")","v":"□"},null,"建築士法第２０条の２第１項の表示をした者"]
[null,"【イ.氏　　　　　名】",null,null,null,null,null,null,null,null,{"$f":"入力用!CY70&\"\"","v":""}]
[null,"【ロ.資　　　　　格】",null,null,null,null,null,null,null,null,"構造設計一級建築士交付",null,null,null,null,null,null,null,null,null,null,"第",{"$f":"入力用!DH71&\"\"","v":""},null,null,null,"号"]
[null,{"$f":"IF(K14=\"\",\"□\",\"☑\")","v":"□"},null,"建築士法第２０条の２第１項の表示をした者"]
[null,"【イ.氏　　　　　名】",null,null,null,null,null,null,null,null,{"$f":"入力用!DW70&\"\"","v":""}]
[null,"【ロ.資　　　　　格】",null,null,null,null,null,null,null,null,"構造設計一級建築士交付",null,null,null,null,null,null,null,null,null,null,"第",{"$f":"入力用!EF71&\"\"","v":""},null,null,null,"号"]
[null,{"$f":"IF(K17=\"\",\"□\",\"☑\")","v":"□"},null,"建築士法第２０条の２第１項の表示をした者"]
[null,"【イ.氏　　　　　名】",null,null,null,null,null,null,null,null,{"$f":"入力用!EU70&\"\"","v":""}]
[null,"【ロ.資　　　　　格】",null,null,null,null,null,null,null,null,"構造設計一級建築士交付",null,null,null,null,null,null,null,null,null,null,"第",{"$f":"入力用!FD71&\"\"","v":""},null,null,null,"号"]
[null,{"$f":"IF(K20=\"\",\"□\",\"☑\")","v":"□"},null,"建築士法第２０条の２第１項の表示をした者"]
[null,"【イ.氏　　　　　名】",null,null,null,null,null,null,null,null,{"$f":"入力用!FS70&\"\"","v":""}]
[null,"【ロ.資　　　　　格】",null,null,null,null,null,null,null,null,"構造設計一級建築士交付",null,null,null,null,null,null,null,null,null,null,"第",{"$f":"入力用!GB71&\"\"","v":""},null,null,null,"号"]
[null,{"$f":"IF(K23=\"\",\"□\",\"☑\")","v":"□"},null,"建築士法第２０条の２第１項の表示をした者"]
[null,"【イ.氏　　　　　名】",null,null,null,null,null,null,null,null,{"$f":"入力用!GQ70&\"\"","v":""}]
[null,"【ロ.資　　　　　格】",null,null,null,null,null,null,null,null,"構造設計一級建築士交付",null,null,null,null,null,null,null,null,null,null,"第",{"$f":"入力用!GZ71&\"\"","v":""},null,null,null,"号"]
[null,{"$f":"IF(K26=\"\",\"□\",\"☑\")","v":"□"},null,"建築士法第２０条の２第１項の表示をした者"]
[null,"【イ.氏　　　　　名】",null,null,null,null,null,null,null,null,{"$f":"入力用!HO70&\"\"","v":""}]
[null,"【ロ.資　　　　　格】",null,null,null,null,null,null,null,null,"構造設計一級建築士交付",null,null,null,null,null,null,null,null,null,null,"第",{"$f":"入力用!HX71&\"\"","v":""},null,null,null,"号"]
[]
[null,{"$f":"IF(K30=\"\",\"□\",\"☑\")","v":"□"},null,"建築士法第２０条の２第３項の表示をした者"]
[null,"【イ.氏　　　　　名】",null,null,null,null,null,null,null,null,{"$f":"入力用!BC73&\"\"","v":""}]
[null,"【ロ.資　　　　　格】",null,null,null,null,null,null,null,null,"構造設計一級建築士交付",null,null,null,null,null,null,null,null,null,null,"第",{"$f":"入力用!BL74&\"\"","v":""},null,null,null,"号"]
[null,{"$f":"IF(K33=\"\",\"□\",\"☑\")","v":"□"},null,"建築士法第２０条の２第３項の表示をした者"]
[null,"【イ.氏　　　　　名】",null,null,null,null,null,null,null,null,{"$f":"入力用!CA73&\"\"","v":""}]
[null,"【ロ.資　　　　　格】",null,null,null,null,null,null,null,null,"構造設計一級建築士交付",null,null,null,null,null,null,null,null,null,null,"第",{"$f":"入力用!CJ74&\"\"","v":""},null,null,null,"号"]
[null,{"$f":"IF(K36=\"\",\"□\",\"☑\")","v":"□"},null,"建築士法第２０条の２第３項の表示をした者"]
[null,"【イ.氏　　　　　名】",null,null,null,null,null,null,null,null,{"$f":"入力用!CY73&\"\"","v":""}]
[null,"【ロ.資　　　　　格】",null,null,null,null,null,null,null,null,"構造設計一級建築士交付",null,null,null,null,null,null,null,null,null,null,"第",{"$f":"入力用!DH74&\"\"","v":""},null,null,null,"号"]
[null,{"$f":"IF(K39=\"\",\"□\",\"☑\")","v":"□"},null,"建築士法第２０条の２第３項の表示をした者"]
[null,"【イ.氏　　　　　名】",null,null,null,null,null,null,null,null,{"$f":"入力用!DW73&\"\"","v":""}]
[null,"【ロ.資　　　　　格】",null,null,null,null,null,null,null,null,"構造設計一級建築士交付",null,null,null,null,null,null,null,null,null,null,"第",{"$f":"入力用!EF74&\"\"","v":""},null,null,null,"号"]
[null,{"$f":"IF(K42=\"\",\"□\",\"☑\")","v":"□"},null,"建築士法第２０条の２第３項の表示をした者"]
[null,"【イ.氏　　　　　名】",null,null,null,null,null,null,null,null,{"$f":"入力用!EU73&\"\"","v":""}]
[null,"【ロ.資　　　　　格】",null,null,null,null,null,null,null,null,"構造設計一級建築士交付",null,null,null,null,null,null,null,null,null,null,"第",{"$f":"入力用!FD74&\"\"","v":""},null,null,null,"号"]
[null,{"$f":"IF(K45=\"\",\"□\",\"☑\")","v":"□"},null,"建築士法第２０条の２第３項の表示をした者"]
[null,"【イ.氏　　　　　名】",null,null,null,null,null,null,null,null,{"$f":"入力用!FS73&\"\"","v":""}]
[null,"【ロ.資　　　　　格】",null,null,null,null,null,null,null,null,"構造設計一級建築士交付",null,null,null,null,null,null,null,null,null,null,"第",{"$f":"入力用!GB74&\"\"","v":""},null,null,null,"号"]
[null,{"$f":"IF(K48=\"\",\"□\",\"☑\")","v":"□"},null,"建築士法第２０条の２第３項の表示をした者"]
[null,"【イ.氏　　　　　名】",null,null,null,null,null,null,null,null,{"$f":"入力用!GQ73&\"\"","v":""}]
[null,"【ロ.資　　　　　格】",null,null,null,null,null,null,null,null,"構造設計一級建築士交付",null,null,null,null,null,null,null,null,null,null,"第",{"$f":"入力用!GZ74&\"\"","v":""},null,null,null,"号"]
[null,{"$f":"IF(K51=\"\",\"□\",\"☑\")","v":"□"},null,"建築士法第２０条の２第３項の表示をした者"]
[null,"【イ.氏　　　　　名】",null,null,null,null,null,null,null,null,{"$f":"入力用!HO73&\"\"","v":""}]
[null,"【ロ.資　　　　　格】",null,null,null,null,null,null,null,null,"構造設計一級建築士交付",null,null,null,null,null,null,null,null,null,null,"第",{"$f":"入力用!HX74&\"\"","v":""},null,null,null,"号"]

{"sheet":"第2面 別紙(敷地の位置)","index":19,"n_rows":4,"n_cols":2,"rows_kept":4,"cut":false,"hidden":false,"merged":[[0,0,0,33],[3,10,22,33]]}
["（第二面）別紙"]
["【4.敷地の位置】"]
[]
[null,"【イ.地　名　地　番】"]